Workbook

Sheet Scenario_Current_Demand
B3: Scenario: current electricity demand
B6: Electricity demand | G6: 2010 | H6: 2011 | I6: 2012 | J6: 2013 | K6: 2014 | L6: 2015 | M6: 2016 | N6: 2017 | O6: 2018 | P6: 2019 | Q6: 2020 | R6: 2021 | S6: 2022 | T6: 2023 | U6: 2024 | V6: 2025 | Y6: 2026 | Z6: 2027 | AA6: 2028 | AB6: 2029 | AC6: 2030
B7: Electricity demand [MWh] | G7: 5814019.035 | H7: 6301852.262 | I7: 6604327.164 | J7: 7012819.377 | K7: 7477658.063 | L7: 7945921.687 | M7: 8377847.314 | N7: 8613743.881 | O7: 9096484.101 | P7: 9861641.278 | Q7: 10650466.03 | R7: 11767871.01 | S7: 12509304.04 | T7: 13292004.04 | U7: 14119084.04 | V7: 14992914.04 | Y7: 15915934.04 | Z7: 16890764.04 | AA7: 17920144.04 | AB7: 19006944.04 | AC7: 20154224.04
B8: Transmission and distribution losses [%] | O8: 0.04 | P8: 0.04 | Q8: 0.04 | R8: 0.04 | S8: 0.04 | T8: 0.04 | U8: 0.04 | V8: 0.04 | Y8: 0.04 | Z8: 0.04 | AA8: 0.04 | AB8: 0.04 | AC8: 0.04
B9: Total electricity demand [MWh] | G9: =+G12 -> 6085440.865 | H9: =+H12 -> 6592941.533 | I9: 6861925.926 | J9: 7286833.036 | K9: 7743488.703 | L9: 8248316.823 | M9: 8669522.259 | N9: 8890377.237 | O9: =+O7/(1-O8) -> 9475504.271 | P9: =+P7/(1-P8) -> 10272543 | Q9: 11094235.45 | R9: 12258198.97 | S9: 13030525.04 | T9: 13845837.54 | U9: 14707379.21 | V9: 15617618.79 | Y9: 16579097.96 | Z9: 17594545.87 | AA9: 18666816.71 | AB9: 19798900.04 | AC9: 20993983.37
O11: =+O12-O9 -> 0 | P11: =+P12-P9 -> 0 | Q11: 0 | R11: 0 | S11: 0 | T11: 0 | U11: 0 | V11: 0 | Y11: 0 | Z11: 0 | AA11: 0 | AB11: 0 | AC11: =+AC12-AC9 -> 0
B12: Total generation [MWh] | G12: =+G118+G190+G262+G270 -> 6085440.865 | H12: 6592941.533 | I12: 6861925.926 | J12: 7286833.036 | K12: 7743488.703 | L12: 8248316.823 | M12: 8669522.259 | N12: 8890377.237 | O12: =+O118+O190+O262+O270+O28+O45+O72+O90+O107 -> 9475504.271 | P12: 10272543 | Q12: 11094235.45 | R12: 12258198.97 | S12: 13030525.04 | T12: 13845837.54 | U12: 14707379.21 | V12: 15617618.79 | Y12: 16579097.96 | Z12: 17594545.87 | AA12: 18666816.71 | AB12: 19798900.04 | AC12: 20993983.37
B13: Renewable energy generation [MWh] | G13: =+G190+G262+G270 -> 2209585.15 | H13: =+H190+H262+H270 -> 2388145.984 | I13: 2386578.665 | J13: 2594391.147 | K13: 2317460.239 | L13: 2530134.785 | M13: 1811708.955 | N13: 2334294.747 | O13: =+O45+O72+O90+O107+O190+O262+O270 -> 3176644.459 | P13: 3678816.595 | Q13: 4047174.595 | R13: 6349740.595 | S13: 6349740.595 | T13: 6349740.595 | U13: 6349740.595 | V13: 6349740.595 | Y13: 6349740.595 | Z13: 6349740.595 | AA13: 6349740.595 | AB13: 7444740.595 | AC13: 7838940.595
B14: Fraction renewable energy [%] | G14: =+G13/G12 -> 0.3630936852 | H14: =+H13/H12 -> 0.3622276903 | I14: 0.3478001207 | J14: 0.3560382315 | K14: 0.2992785716 | L14: 0.3067455869 | M14: 0.2089744857 | N14: 0.2625641956 | O14: 0.3352480636 | P14: 0.3581213139 | Q14: 0.3647997748 | R14: 0.5179994722 | S14: 0.487297371 | T14: 0.4586028528 | U14: 0.4317384155 | V14: 0.4065754633 | Y14: 0.3829967476 | Z14: 0.3608925539 | AA14: 0.3401619406 | AB14: 0.3760178889 | AC14: 0.3733898639
B15: Fossil fuel based generation [MWh] | G15: =+G118 -> 3875855.715 | H15: 4204795.55 | I15: 4475347.261 | J15: 4692441.889 | K15: 5426028.464 | L15: 5718182.038 | M15: 6857813.304 | N15: 6556082.49 | O15: =+O28+O118 -> 6298859.813 | P15: 6593726.402 | Q15: 7047060.857 | R15: 5908458.372 | S15: 6680784.445 | T15: 7496096.945 | U15: 8357638.611 | V15: 9267878.195 | Y15: 10229357.36 | Z15: 11244805.28 | AA15: 12317076.11 | AB15: 12354159.44 | AC15: 13155042.78
B16: Fraction fossil fuels [%] | G16: =+G15/G12 -> 0.6369063148 | H16: =+H15/H12 -> 0.6377723097 | I16: 0.6521998793 | J16: 0.6439617685 | K16: 0.7007214284 | L16: 0.6932544131 | M16: 0.7910255143 | N16: 0.7374358044 | O16: 0.6647519364 | P16: 0.6418786861 | Q16: 0.6352002252 | R16: 0.4820005278 | S16: 0.512702629 | T16: 0.5413971472 | U16: 0.5682615845 | V16: 0.5934245367 | Y16: 0.6170032524 | Z16: 0.6391074461 | AA16: 0.6598380594 | AB16: 0.6239821111 | AC16: 0.6266101361
B18: Grid emission factor
B19: Greenhouse gas emissions [tCO2e] | G19: =+[16]OM_EF_2010!H23 -> 2367600.802 | H19: =+[16]OM_EF_2011!H22 -> 2563443.554 | I19: =+[16]OM_EF_2012!H22 -> 2817609.709 | J19: =+[16]OM_EF_2013!H22 -> 2778715.357 | K19: =+[16]OM_EF_2014!H22 -> 3227014.123 | L19: =+[16]OM_EF_2015!H22 -> 3281998.242 | M19: =+[16]OM_EF_2016!H23 -> 4027512.386 | N19: =+[16]OM_EF_2017!H22 -> 3757647.583 | O19: =+SUMPRODUCT($F$119:$F$186,O119:O186)+SUMPRODUCT($F$29:$F$42,O29:O42) -> 3593345.083 | P19: 2590778.177 | Q19: 2689917.244 | R19: 2255303.932 | S19: 2550106.725 | T19: 2861317.767 | U19: 3190174.837 | V19: 3546148.309 | Y19: 4030417.916 | Z19: 4620177.049 | AA19: 5303607.902 | AB19: 5329647.882 | AC19: 5846583.669
B20: Average operting margin emission factor [tCO2e/MWh] | G20: =+'[16]Grid-EF'!H9 -> 0.3890598651 | H20: =+'[16]Grid-EF'!I9 -> 0.3888163639 | I20: =+'[16]Grid-EF'!J9 -> 0.4106149992 | J20: =+'[16]Grid-EF'!K9 -> 0.3813337486 | K20: =+'[16]Grid-EF'!L9 -> 0.4167390497 | L20: =+'[16]Grid-EF'!M9 -> 0.3978991486 | M20: =+'[16]Grid-EF'!N9 -> 0.4645598991 | N20: =+'[16]Grid-EF'!O9 -> 0.4226139263 | O20: =+O19/O12 -> 0.3792246808 | P20: =+P19/P12 -> 0.2522041697 | Q20: 0.2424608037 | R20: 0.1839833028 | S20: 0.1957025305 | T20: 0.2066554485 | U20: 0.2169098105 | V20: 0.2270607547 | Y20: 0.2431023646 | Z20: 0.262591435 | AA20: 0.2841195682 | AB20: 0.2691890899 | AC20: 0.2784885348
B21: Simple operating margin emission factor [tCO2e/MWh] | G21: =+G19/G15 -> 0.6108588596 | H21: =+H19/H15 -> 0.6096476093 | I21: 0.6295845986 | J21: 0.5921683044 | K21: 0.5947285652 | L21: 0.573958335 | M21: 0.5872881351 | N21: 0.5731544088 | O21: 0.5704754812 | P21: 0.3929156321 | Q21: 0.3817076791 | R21: 0.3817076791 | S21: 0.3817076791 | T21: 0.3817076791 | U21: 0.3817076791 | V21: 0.3826278501 | Y21: 0.3940049969 | Z21: 0.4108721258 | AA21: 0.4305898457 | AB21: 0.4314051398 | AC21: 0.44443669
B24: Capacity additions 2018 - 2030
G26: 2010 | H26: 2011 | I26: 2012 | J26: 2013 | K26: 2014 | L26: 2015 | M26: 2016 | N26: 2017 | O26: 2018 | P26: 2019 | Q26: 2020 | R26: 2021 | S26: 2022 | T26: 2023 | U26: 2024 | V26: 2025 | Y26: 2026 | Z26: 2027 | AA26: 2028 | AB26: 2029 | AC26: 2030
B27: Plant Unit | C27: Commissioning date | D27: Capacity [MW] | E27: Capacity factor | F27: Emission factor [tCO2/MWh] | G27: Generation [MWh] | H27: Generation [MWh] | I27: Generation [MWh] | J27: Generation [MWh] | K27: Generation [MWh] | L27: Generation [MWh] | M27: Generation [MWh] | N27: Generation [MWh] | O27: Generation [MWh] | P27: Generation [MWh] | Q27: Generation [MWh] | R27: Generation [MWh] | S27: Generation [MWh] | T27: Generation [MWh] | U27: Generation [MWh] | V27: Generation [MWh] | Y27: Generation [MWh] | Z27: Generation [MWh] | AA27: Generation [MWh] | AB27: Generation [MWh] | AC27: Generation [MWh]
B28: Natural gas | O28: =SUM(O29:O42) -> 0 | P28: 5794004.16 | Q28: 7047060.857 | R28: 5908458.372 | S28: 6680784.445 | T28: 7496096.945 | U28: 8357638.611 | V28: 9078793.92 | W28: =SUM(W30:W273) -> 3546148.309 | X28: =W28/V28 -> 0.3905968502 | Y28: 9078793.92 | Z28: 9078793.92 | AA28: 9078793.92 | AB28: 9078793.92 | AC28: 9078793.92
B29: Entre Ríos
B30: CCERI3 | C30: 2019 | D30: 136.4 | E30: 0.7 | F30: =+'[16]GHG-ER'!J29 -> 0.3817076791 | P30: =+$D30*8760*$E30 -> 836404.8 | U30: 115249.4913 | V30: =+$D30*8760*$E30 -> 836404.8 | W30: =V30*F30 -> 319262.135 | Y30: 836404.8 | Z30: 836404.8 | AA30: 836404.8 | AB30: 836404.8 | AC30: 836404.8
B31: CCERI4 | C31: 2019 | D31: 136.4 | E31: 0.7 | F31: =+'[16]GHG-ER'!J30 -> 0.3817076791 | P31: =+$D31*8760*$E31 -> 836404.8 | T31: 90112.62459 | U31: 836404.8 | V31: 836404.8 | W31: =V31*F31 -> 319262.135 | Y31: 836404.8 | Z31: 836404.8 | AA31: 836404.8 | AB31: 836404.8 | AC31: 836404.8
B32: CCERI5 | C32: 2019 | D32: 136.4 | E32: 0.7 | F32: =+'[16]GHG-ER'!J31 -> 0.3817076791 | P32: =+$D32*8760*$E32 -> 836404.8 | Q32: 477481.337 | S32: 111204.9246 | T32: 836404.8 | U32: 836404.8 | V32: 836404.8 | W32: 319262.135 | Y32: 836404.8 | Z32: 836404.8 | AA32: 836404.8 | AB32: 836404.8 | AC32: 836404.8
B33: Del Sur | W33: 0
B34: CCSUR1 | C34: 2020 | D34: 132.69 | E34: 0.7 | F34: =+F36 -> 0.3817076791 | Q34: =+$D34*8760*$E34 -> 813655.08 | R34: 152533.9317 | S34: =+$D34*8760*$E34 -> 813655.08 | T34: 813655.08 | U34: 813655.08 | V34: 813655.08 | W34: 310578.3921 | Y34: 813655.08 | Z34: 813655.08 | AA34: 813655.08 | AB34: 813655.08 | AC34: 813655.08
B35: CCSUR2 | C35: 2020 | D35: 132.69 | E35: 0.7 | F35: =+F36 -> 0.3817076791 | Q35: =+$D35*8760*$E35 -> 813655.08 | R35: 813655.08 | S35: 813655.08 | T35: 813655.08 | U35: 813655.08 | V35: 813655.08 | W35: 310578.3921 | Y35: 813655.08 | Z35: 813655.08 | AA35: 813655.08 | AB35: 813655.08 | AC35: 813655.08
B36: CCSUR3 | C36: 2019 | D36: 132.69 | E36: 0.7 | F36: =+'[16]GHG-ER'!J25 -> 0.3817076791 | P36: =+$D36*8760*$E36 -> 813655.08 | Q36: =+$D36*8760*$E36 -> 813655.08 | R36: 813655.08 | S36: 813655.08 | T36: 813655.08 | U36: 813655.08 | V36: 813655.08 | W36: 310578.3921 | Y36: 813655.08 | Z36: 813655.08 | AA36: 813655.08 | AB36: 813655.08 | AC36: 813655.08
B37: CCSUR4 | C37: 2019 | D37: 132.69 | E37: 0.7 | F37: =+'[16]GHG-ER'!J26 -> 0.3817076791 | P37: =+$D37*8760*$E37 -> 813655.08 | Q37: 813655.08 | R37: 813655.08 | S37: 813655.08 | T37: 813655.08 | U37: 813655.08 | V37: 813655.08 | W37: 310578.3921 | Y37: 813655.08 | Z37: 813655.08 | AA37: 813655.08 | AB37: 813655.08 | AC37: 813655.08
B38: Warnes | W38: 0
B39: CCWAR1 | C39: 2020 | D39: 135.15 | E39: 0.7 | F39: =+F41 -> 0.3817076791 | Q39: =+$D39*8760*$E39 -> 828739.8 | R39: =+$D39*8760*$E39 -> 828739.8 | S39: 828739.8 | T39: 828739.8 | U39: 828739.8 | V39: 828739.8 | W39: 316336.3456 | Y39: 828739.8 | Z39: 828739.8 | AA39: 828739.8 | AB39: 828739.8 | AC39: 828739.8
B40: CCWAR2 | C40: 2020 | D40: 135.15 | E40: 0.7 | F40: =+F41 -> 0.3817076791 | Q40: 828739.8 | R40: 828739.8 | S40: 828739.8 | T40: 828739.8 | U40: 828739.8 | V40: 828739.8 | W40: 316336.3456 | Y40: 828739.8 | Z40: 828739.8 | AA40: 828739.8 | AB40: 828739.8 | AC40: 828739.8
B41: CCWAR3 | C41: 2019 | D41: 135.15 | E41: 0.7 | F41: =+'[16]GHG-ER'!J27 -> 0.3817076791 | P41: =+$D41*8760*$E41 -> 828739.8 | Q41: 828739.8 | R41: 828739.8 | S41: 828739.8 | T41: 828739.8 | U41: 828739.8 | V41: 828739.8 | W41: 316336.3456 | Y41: 828739.8 | Z41: 828739.8 | AA41: 828739.8 | AB41: 828739.8 | AC41: 828739.8
B42: CCWAR4 | C42: 2019 | D42: 135.15 | E42: 0.7 | F42: =+'[16]GHG-ER'!J28 -> 0.3817076791 | P42: =+$D42*8760*$E42 -> 828739.8 | Q42: 828739.8 | R42: 828739.8 | S42: 828739.8 | T42: 828739.8 | U42: 828739.8 | V42: 828739.8 | W42: 316336.3456 | Y42: 828739.8 | Z42: 828739.8 | AA42: 828739.8 | AB42: 828739.8 | AC42: 828739.8
W43: 0
B44: Plant Unit | C44: Commissioning date | D44: Capacity [MW] | E44: Capacity factor | G44: Generation [MWh] | H44: Generation [MWh] | I44: Generation [MWh] | J44: Generation [MWh] | K44: Generation [MWh] | L44: Generation [MWh] | M44: Generation [MWh] | N44: Generation [MWh] | O44: Generation [MWh] | P44: Generation [MWh] | Q44: Generation [MWh] | R44: Generation [MWh] | S44: Generation [MWh] | T44: Generation [MWh] | U44: Generation [MWh] | V44: Generation [MWh] | Y44: Generation [MWh] | Z44: Generation [MWh] | AA44: Generation [MWh] | AB44: Generation [MWh] | AC44: Generation [MWh]
B45: Hydropower | O45: =SUM(O47:O68) -> 240900 | P45: =SUM(P47:P68) -> 543120 | Q45: 543120 | R45: 2707716 | S45: 2707716 | T45: 2707716 | U45: 2707716 | V45: 2707716 | W45: 0 | Y45: 2707716 | Z45: 2707716 | AA45: 2707716 | AB45: =SUM(AB47:AB68) -> 3802716 | AC45: 4196916
B46: San José | W46: 0
B47: San Jose I | C47: 2018 | D47: 55 | E47: 0.5 | O47: =+$D47*8760*$E47 -> 240900 | P47: =+$D47*8760*$E47 -> 240900 | Q47: 240900 | R47: 240900 | S47: 240900 | T47: 240900 | U47: 240900 | V47: 240900 | W47: 0 | Y47: 240900 | Z47: 240900 | AA47: 240900 | AB47: 240900 | AC47: 240900
B48: San José II | C48: 2019 | D48: 69 | E48: 0.5 | P48: 302220 | Q48: 302220 | R48: 302220 | S48: 302220 | T48: 302220 | U48: 302220 | V48: 302220 | W48: 0 | Y48: 302220 | Z48: 302220 | AA48: 302220 | AB48: 302220 | AC48: 302220
B49: Sehuencas | W49: 0
B50: Sehuencas | C50: 2021 | D50: 198.6 | E50: 0.5 | R50: =+$D50*8760*$E50 -> 869868 | S50: 869868 | T50: 869868 | U50: 869868 | V50: 869868 | W50: 0 | Y50: 869868 | Z50: 869868 | AA50: 869868 | AB50: 869868 | AC50: 869868
B51: Juntas | W51: 0
B52: Juntas | C52: 2021 | D52: 91.6 | E52: 0.5 | R52: 401208 | S52: 401208 | T52: 401208 | U52: 401208 | V52: 401208 | W52: 0 | Y52: 401208 | Z52: 401208 | AA52: 401208 | AB52: 401208 | AC52: 401208
B53: Umapalca | W53: 0
B54: Umapalca | C54: 2021 | D54: 85.8 | E54: 0.5 | R54: 375804 | S54: 375804 | T54: 375804 | U54: 375804 | V54: 375804 | W54: 0 | Y54: 375804 | Z54: 375804 | AA54: 375804 | AB54: 375804 | AC54: 375804
B55: Palillada | W55: 0
B56: Palillada | C56: 2021 | D56: 118.2 | E56: 0.5 | R56: =+$D56*8760*$E56 -> 517716 | S56: 517716 | T56: 517716 | U56: 517716 | V56: 517716 | W56: 0 | Y56: 517716 | Z56: 517716 | AA56: 517716 | AB56: 517716 | AC56: 517716
B57: Hydro A | W57: 0
B58: Hidro A | C58: 2029 | D58: 250 | E58: 0.5 | W58: 0 | AB58: =$D$58*8760*$E$58 -> 1095000 | AC58: =$D$58*8760*$E$58 -> 1095000
B59: Hydro B | W59: 0
B60: Hidro B | C60: 2030 | D60: 90 | E60: 0.5 | W60: 0 | AC60: =$D$60*8760*$E$60 -> 394200
B61: Hydro C | W61: 0
B62: Hidro C | W62: 0
B63: Hydro D | W63: 0
B64: Hidro D | W64: 0
B65: Hydro E | W65: 0
B66: Hidro E | W66: 0
B67: Hydro F | W67: 0
B68: Hidro F | W68: 0
W69: 0
W70: 0
B71: Plant Unit | C71: Commissioning date | D71: Capacity [MW] | E71: Capacity factor | G71: Generation [MWh] | H71: Generation [MWh] | I71: Generation [MWh] | J71: Generation [MWh] | K71: Generation [MWh] | L71: Generation [MWh] | M71: Generation [MWh] | N71: Generation [MWh] | O71: Generation [MWh] | P71: Generation [MWh] | Q71: Generation [MWh] | R71: Generation [MWh] | S71: Generation [MWh] | T71: Generation [MWh] | U71: Generation [MWh] | V71: Generation [MWh] | Y71: Generation [MWh] | Z71: Generation [MWh] | AA71: Generation [MWh] | AB71: Generation [MWh] | AC71: Generation [MWh]
B72: Wind | G72: =+SUM(G73:G75) -> 0 | H72: =+SUM(H73:H75) -> 0 | I72: =+SUM(I73:I75) -> 0 | J72: 0 | K72: 0 | L72: 0 | M72: 0 | N72: =+SUM(N73:N75) -> 0 | O72: =+SUM(O73:O87) -> 0 | P72: =+SUM(P73:P87) -> 0 | Q72: 331128 | R72: 469098 | S72: 469098 | T72: 469098 | U72: 469098 | V72: 469098 | W72: 0 | Y72: 469098 | Z72: 469098 | AA72: 469098 | AB72: 469098 | AC72: 469098
B73: El Dorado | W73: 0
B74: El Dorado | C74: 2020 | D74: 54 | E74: 0.35 | Q74: =+$D74*8760*$E74 -> 165564 | R74: =+$D74*8760*$E74 -> 165564 | S74: 165564 | T74: 165564 | U74: 165564 | V74: 165564 | W74: 0 | Y74: 165564 | Z74: 165564 | AA74: 165564 | AB74: 165564 | AC74: 165564
B75: La Ventolera | W75: 0
B76: La Ventolera | C76: 2021 | D76: 24 | E76: 0.35 | R76: =+$D76*8760*$E76 -> 73584 | S76: 73584 | T76: 73584 | U76: 73584 | V76: 73584 | W76: 0 | Y76: 73584 | Z76: 73584 | AA76: 73584 | AB76: 73584 | AC76: 73584
B77: San Julián | W77: 0
B78: San Julián | C78: 2020 | D78: 39.6 | E78: 0.35 | Q78: =+$D78*8760*$E78 -> 121413.6 | R78: 121413.6 | S78: 121413.6 | T78: 121413.6 | U78: 121413.6 | V78: 121413.6 | W78: 0 | Y78: 121413.6 | Z78: 121413.6 | AA78: 121413.6 | AB78: 121413.6 | AC78: 121413.6
B79: Warnes | W79: 0
B80: Warnes I | C80: 2020 | D80: 14.4 | E80: 0.35 | Q80: =+$D80*8760*$E80 -> 44150.4 | R80: 44150.4 | S80: 44150.4 | T80: 44150.4 | U80: 44150.4 | V80: 44150.4 | W80: 0 | Y80: 44150.4 | Z80: 44150.4 | AA80: 44150.4 | AB80: 44150.4 | AC80: 44150.4
B81: Warnes II | C81: 2021 | D81: 21 | E81: 0.35 | R81: 64386 | S81: 64386 | T81: 64386 | U81: 64386 | V81: 64386 | W81: 0 | Y81: 64386 | Z81: 64386 | AA81: 64386 | AB81: 64386 | AC81: 64386
B82: Wind A | W82: 0
B83: Wind A | W83: 0
B84: Wind B | W84: 0
B85: Wind B | W85: 0
B86: Wind C | W86: 0
B87: Wind C | W87: 0
W88: 0
B89: Plant Unit | C89: Commissioning date | D89: Capacity [MW] | E89: Capacity factor | G89: Generation [MWh] | H89: Generation [MWh] | I89: Generation [MWh] | J89: Generation [MWh] | K89: Generation [MWh] | L89: Generation [MWh] | M89: Generation [MWh] | N89: Generation [MWh] | O89: Generation [MWh] | P89: Generation [MWh] | Q89: Generation [MWh] | R89: Generation [MWh] | S89: Generation [MWh] | T89: Generation [MWh] | U89: Generation [MWh] | V89: Generation [MWh] | Y89: Generation [MWh] | Z89: Generation [MWh] | AA89: Generation [MWh] | AB89: Generation [MWh] | AC89: Generation [MWh]
B90: Solar PV | G90: =+SUM(G91:G95) -> 0 | H90: 0 | I90: 0 | J90: 0 | K90: 0 | L90: 0 | M90: 0 | N90: 0 | O90: =+SUM(O91:O104) -> 136656 | P90: =+SUM(P91:P104) -> 346896 | Q90: 346896 | R90: 346896 | S90: 346896 | T90: 346896 | U90: 346896 | V90: 346896 | W90: 0 | Y90: 346896 | Z90: 346896 | AA90: 346896 | AB90: 346896 | AC90: 346896
B91: Oruro | W91: 0
B92: Oruro I | C92: 2019 | D92: 50 | E92: 0.24 | P92: =+$D92*8760*$E92 -> 105120 | Q92: 105120 | R92: 105120 | S92: 105120 | T92: 105120 | U92: 105120 | V92: 105120 | W92: 0 | Y92: 105120 | Z92: 105120 | AA92: 105120 | AB92: 105120 | AC92: 105120
B93: Oruro | W93: 0
B94: Oruro I | C94: 2019 | D94: 50 | E94: 0.24 | P94: 105120 | Q94: 105120 | R94: 105120 | S94: 105120 | T94: 105120 | U94: 105120 | V94: 105120 | W94: 0 | Y94: 105120 | Z94: 105120 | AA94: 105120 | AB94: 105120 | AC94: 105120
B95: Uyuni | W95: =V95*F95 -> 0
B96: Uyuni | C96: 2018 | D96: 60 | E96: 0.24 | O96: =+$D96*8760*$E96 -> 126144 | P96: 126144 | Q96: 126144 | R96: 126144 | S96: 126144 | T96: 126144 | U96: 126144 | V96: 126144 | W96: 0 | Y96: 126144 | Z96: 126144 | AA96: 126144 | AB96: 126144 | AC96: 126144
B97: Yunchará | W97: 0
B98: Yunchará | C98: 2018 | D98: 5 | E98: 0.24 | O98: =+$D98*8760*$E98 -> 10512 | P98: 10512 | Q98: 10512 | R98: 10512 | S98: 10512 | T98: 10512 | U98: 10512 | V98: 10512 | W98: 0 | Y98: 10512 | Z98: 10512 | AA98: 10512 | AB98: 10512 | AC98: 10512
B99: Solar A | W99: 0
B100: Solar A | W100: 0
B101: Solar B | W101: 0
B102: Solar B | W102: 0
B103: Solar C | W103: 0
B104: Solar C | W104: 0
W105: 0
B106: Plant Unit | C106: Commissioning date | D106: Capacity [MW] | E106: Capacity factor | G106: Generation [MWh] | H106: Generation [MWh] | I106: Generation [MWh] | J106: Generation [MWh] | K106: Generation [MWh] | L106: Generation [MWh] | M106: Generation [MWh] | N106: Generation [MWh] | O106: Generation [MWh] | P106: Generation [MWh] | Q106: Generation [MWh] | R106: Generation [MWh] | S106: Generation [MWh] | T106: Generation [MWh] | U106: Generation [MWh] | V106: Generation [MWh] | Y106: Generation [MWh] | Z106: Generation [MWh] | AA106: Generation [MWh] | AB106: Generation [MWh] | AC106: Generation [MWh]
B107: Geothermal | G107: =+SUM(G108:G113) -> 0 | H107: =+SUM(H108:H113) -> 0 | I107: =+SUM(I108:I113) -> 0 | J107: 0 | K107: 0 | L107: 0 | M107: 0 | N107: =+SUM(N108:N113) -> 0 | O107: =+SUM(O108:O111) -> 0 | P107: =+SUM(P108:P111) -> 0 | Q107: 37230 | R107: 37230 | S107: 37230 | T107: 37230 | U107: 37230 | V107: 37230 | W107: 0 | Y107: 37230 | Z107: 37230 | AA107: 37230 | AB107: 37230 | AC107: 37230
B108: Laguna Colorada | W108: 0
B109: Laguna Colorada | C109: 2020 | D109: 5 | E109: 0.85 | Q109: =+$D109*8760*$E109 -> 37230 | R109: =+$D109*8760*$E109 -> 37230 | S109: 37230 | T109: 37230 | U109: 37230 | V109: 37230 | W109: 0 | Y109: 37230 | Z109: 37230 | AA109: 37230 | AB109: 37230 | AC109: 37230
B110: GEO A | W110: 0
B111: GEO A | W111: 0
W112: 0
W113: 0
B114: Existing plants | W114: 0
W115: 0
G116: 2010 | H116: 2011 | I116: 2012 | J116: 2013 | K116: 2014 | L116: 2015 | M116: 2016 | N116: 2017 | O116: 2018 | P116: 2019 | Q116: 2020 | R116: 2021 | S116: 2022 | T116: 2023 | U116: 2024 | V116: 2025 | W116: 0 | Y116: 2026 | Z116: 2027 | AA116: 2028 | AB116: 2029 | AC116: 2030
B117: Plant Unit | F117: Emission factor (2017) [tCO2/MWh] | G117: Generation [MWh] | H117: Generation [MWh] | I117: Generation [MWh] | J117: Generation [MWh] | K117: Generation [MWh] | L117: Generation [MWh] | M117: Generation [MWh] | N117: Generation [MWh] | O117: Generation [MWh] | P117: Generation [MWh] | Q117: Generation [MWh] | R117: Generation [MWh] | S117: Generation [MWh] | T117: Generation [MWh] | U117: Generation [MWh] | V117: Generation [MWh] | Y117: Generation [MWh] | Z117: Generation [MWh] | AA117: Generation [MWh] | AB117: Generation [MWh] | AC117: Generation [MWh]
B118: Natural gas | G118: =SUM(G119:G186) -> 3875855.715 | H118: 4204795.55 | I118: 4475347.261 | J118: 4692441.889 | K118: 5426028.464 | L118: 5718182.038 | M118: 6857813.304 | N118: =SUM(N119:N186) -> 6556082.49 | O118: =SUM(O119:O186) -> 6298859.813 | P118: 799722.2424 | Q118: 0 | R118: 0 | S118: 0 | T118: 0 | U118: 0 | V118: 189084.2746 | W118: 0 | Y118: 1150563.441 | Z118: 2166011.358 | AA118: 3238282.191 | AB118: 3275365.525 | AC118: =SUM(AC119:AC186) -> 4076248.858
B119: El Alto | F119: =+[16]OM_EF_2017!G23 -> 0 | W119: 0
B120: ALT1 | F120: =+[16]OM_EF_2017!G24 -> 0.5643047003 | G120: 0 | H120: 0 | I120: 57810.7089 | J120: 107684.098 | K120: 108265.7625 | L120: 62901.0717 | M120: 100635.927 | N120: 49236.5229 | O120: =+AVERAGE($L$120:$N$120) -> 70924.5072 | W120: 0 | Y120: 52910.75454 | Z120: =+AVERAGE($L$120:$N$120) -> 70924.5072 | AA120: 70924.5072 | AB120: 70924.5072 | AC120: 70924.5072
B121: ALT2 | F121: =+[16]OM_EF_2017!G25 -> 0.4944620795 | G121: 0 | H121: 0 | I121: 0 | J121: 103575.9891 | K121: 74350.10655 | L121: 230006.7025 | M121: 213864.514 | N121: 148687.6958 | O121: =+AVERAGE($L$121:$N$121) -> 197519.6374 | P121: =+AVERAGE($L$121:$N$121) -> 197519.6374 | W121: 0 | Y121: =+AVERAGE($L$121:$N$121) -> 197519.6374 | Z121: 197519.6374 | AA121: 197519.6374 | AB121: 197519.6374 | AC121: 197519.6374
B122: Aranjuez | F122: =+[16]OM_EF_2017!G26 -> 0 | W122: 0
B123: ARJ1 | F123: =+[16]OM_EF_2017!G27 -> 0.6037835376 | G123: 0 | H123: 1295.25873 | I123: 6370.205515 | J123: 1574.993684 | K123: 5457.598282 | L123: 903.1293569 | M123: 2065.398746 | N123: 511.0025 | W123: 0 | AA123: =+AVERAGE($L$123:$N$123) -> 1159.843534 | AB123: 1159.843534 | AC123: 1159.843534
B124: ARJ2 | F124: =+[16]OM_EF_2017!G28 -> 0.6037835376 | G124: 7078.176123 | H124: 6630.80579 | I124: 0 | J124: 0 | K124: 1826.328269 | L124: 911.2479539 | M124: 2494.435346 | N124: 148.1945 | O124: =+AVERAGE($L$124:$N$124) -> 1184.625933 | W124: 0 | AA124: =+AVERAGE($L$124:$N$124) -> 1184.625933 | AB124: 1184.625933 | AC124: 1184.625933
B125: ARJ3 | F125: =+[16]OM_EF_2017!G29 -> 0.6037835376 | G125: 6933.803202 | H125: 3921.550401 | I125: 7512.44944 | J125: 1769.8755 | K125: 5453.138 | L125: 742.6815 | M125: 3046.812 | N125: 740.5125 | O125: =+AVERAGE($L$125:$N$125) -> 1510.002 | W125: 0 | AA125: =+AVERAGE($L$125:$N$125) -> 1510.002 | AB125: 1510.002 | AC125: 1510.002
B126: ARJ5 | G126: 0 | H126: 0 | I126: 0 | J126: 0 | K126: 0 | L126: 0 | M126: 0 | N126: 0 | O126: =+AVERAGE(L126:N126) -> 0 | P126: =+O126 -> 0 | Q126: 0 | R126: 0 | S126: 0 | T126: 0 | U126: 0 | V126: =+U126 -> 0 | W126: 0 | Y126: =+V126 -> 0 | Z126: 0 | AA126: 0 | AB126: 0 | AC126: 0
B127: ARJ6 | G127: 2.1599455 | H127: 0 | I127: 0 | J127: 0 | K127: 0 | L127: 0 | M127: 0 | N127: 0 | O127: 0 | P127: 0 | Q127: 0 | R127: 0 | S127: 0 | T127: 0 | U127: 0 | V127: =+U127 -> 0 | W127: 0 | Y127: =+V127 -> 0 | Z127: 0 | AA127: 0 | AB127: 0 | AC127: 0
B128: ARJ8 | F128: =+[16]OM_EF_2017!G30 -> 0.6804920431 | G128: 128803.56 | H128: 132236.64 | I128: 116890.92 | J128: 106260.78 | K128: 105427.86 | L128: 83446.76 | M128: 101154.24 | N128: 139685.16 | O128: =+AVERAGE($L$128:$N$128) -> 108095.3867 | W128: 0 | AA128: =+AVERAGE($L$128:$N$128) -> 108095.3867 | AB128: 108095.3867 | AC128: 108095.3867
B129: ARJ9 | F129: =+[16]OM_EF_2017!G31 -> 0.535657388 | G129: 8515.644332 | H129: 9389.035841 | I129: 1184.838632 | J129: 338.88614 | K129: 10782.3011 | L129: 8423.39897 | M129: 10825.28304 | N129: 697.12325 | O129: =+AVERAGE($L$129:$N$129) -> 6648.601753 | W129: 0 | Y129: =+AVERAGE($L$129:$N$129) -> 6648.601753 | Z129: 6648.601753 | AA129: 6648.601753 | AB129: 6648.601753 | AC129: 6648.601753
B130: ARJ10 | F130: =+[16]OM_EF_2017!G32 -> 0.535657388 | G130: 5375.3301 | H130: 6762.75858 | I130: 8797.995819 | J130: 4904.84453 | K130: 2009.37959 | L130: 0 | M130: 0 | N130: 0 | O130: 0 | P130: =+O130 -> 0 | Q130: 0 | R130: 0 | S130: 0 | T130: 0 | U130: 0 | V130: =+U130 -> 0 | W130: 0 | Y130: =+V130 -> 0 | Z130: 0 | AA130: 0 | AB130: 0 | AC130: 0
B131: ARJ11 | F131: =+[16]OM_EF_2017!G33 -> 0.535657388 | G131: 5023.210781 | H131: 0 | I131: 8208.257779 | J131: 9655.36312 | K131: 5505.76371 | L131: 4874.09304 | M131: 10874.30593 | N131: 657.711895 | O131: =+AVERAGE($L$131:$N$131) -> 5468.703622 | W131: 0 | Y131: =+AVERAGE($L$131:$N$131) -> 5468.703622 | Z131: 5468.703622 | AA131: 5468.703622 | AB131: 5468.703622 | AC131: 5468.703622
B132: ARJ12 | F132: =+[16]OM_EF_2017!G34 -> 0.535657388 | G132: 2147.392315 | H132: 6196.934516 | I132: 11548.43109 | J132: 11349.07458 | K132: 9975.93413 | L132: 7073.216074 | M132: 0 | N132: 0 | O132: 0 | P132: =+O132 -> 0 | Q132: 0 | R132: 0 | S132: 0 | T132: 0 | U132: 0 | V132: =+U132 -> 0 | W132: 0 | Y132: =+V132 -> 0 | Z132: 0 | AA132: 0 | AB132: 0 | AC132: 0
B133: ARJ13 | F133: =+[16]OM_EF_2017!G35 -> 0.535657388 | G133: 8526.900641 | H133: 8851.283968 | I133: 10087.29019 | J133: 9758.3664 | K133: 4970.5612 | L133: 5371.6202 | M133: 0 | N133: 0 | O133: 0 | P133: 0 | Q133: 0 | R133: 0 | S133: 0 | T133: 0 | U133: 0 | V133: =+U133 -> 0 | W133: 0 | Y133: =+V133 -> 0 | Z133: 0 | AA133: 0 | AB133: 0 | AC133: 0
B134: ARJ14 | F134: =+[16]OM_EF_2017!G36 -> 0.535657388 | G134: 7797.82554 | H134: 10123.33607 | I134: 9538.652815 | J134: 2570.0208 | K134: 7007.9094 | L134: 0 | M134: 0 | N134: 0 | O134: 0 | P134: 0 | Q134: 0 | R134: 0 | S134: 0 | T134: 0 | U134: 0 | V134: =+U134 -> 0 | W134: 0 | Y134: =+V134 -> 0 | Z134: 0 | AA134: 0 | AB134: 0 | AC134: 0
B135: ARJ15 | F135: =+[16]OM_EF_2017!G37 -> 0.535657388 | G135: 0 | H135: 4892.938408 | I135: 11580.99053 | J135: 10493.6892 | K135: 9947.2014 | L135: 7564.2672 | M135: 8339.7396 | N135: 474.077 | O135: =+AVERAGE($L$135:$N$135) -> 5459.361267 | W135: 0 | Y135: =+AVERAGE($L$135:$N$135) -> 5459.361267 | Z135: 5459.361267 | AA135: 5459.361267 | AB135: 5459.361267 | AC135: 5459.361267
B136: Bulo Bulo | F136: =+[16]OM_EF_2017!G38 -> 0 | W136: 0
B137: BUL1 | F137: =+[16]OM_EF_2017!G39 -> 0.5329347096 | G137: 320717 | H137: 327166 | I137: 106480 | J137: 287973.534 | K137: 269807.618 | L137: 253280.231 | M137: 223504.631 | N137: 237695.821 | O137: =+AVERAGE($L$137:$N$137) -> 238160.2277 | W137: 0 | Y137: =+AVERAGE($L$137:$N$137) -> 238160.2277 | Z137: 238160.2277 | AA137: 238160.2277 | AB137: 238160.2277 | AC137: 238160.2277
B138: BUL2 | F138: =+[16]OM_EF_2017!G40 -> 0.5363084633 | G138: 331746 | H138: 326073 | I138: 289542 | J138: 202260.81 | K138: 173568.66 | L138: 33037.909 | M138: 15850.489 | N138: 77027.986 | O138: =+AVERAGE($L$138:$N$138) -> 41972.128 | W138: 0 | Y138: =+AVERAGE($L$138:$N$138) -> 41972.128 | Z138: 41972.128 | AA138: 41972.128 | AB138: 41972.128 | AC138: 41972.128
B139: BUL3 | F139: =+[16]OM_EF_2017!G41 -> 0.5216888639 | K139: 265758.5813 | L139: 313954.442 | M139: 125500.576 | N139: 239710.459 | O139: =+AVERAGE($L$139:$N$139) -> 226388.4923 | W139: 0 | Y139: =+AVERAGE($L$139:$N$139) -> 226388.4923 | Z139: 226388.4923 | AA139: 226388.4923 | AB139: 226388.4923 | AC139: 226388.4923
B140: Carrasco | F140: =+[16]OM_EF_2017!G42 -> 0.6067264812 | G140: 743118.8202 | H140: 609577.5585 | I140: 772580.2 | J140: 667630.61 | K140: 815783.94 | L140: 516330.15 | M140: 440398.86 | N140: 552699.29 | O140: =+AVERAGE($L$140:$N$140) -> 503142.7667 | W140: 0 | AC140: =+AVERAGE($L$140:$N$140) -> 503142.7667
B141: CAR1 | F141: =+[16]OM_EF_2017!G43 -> 0.5929520125 | W141: 0
B142: CAR2 | F142: =+[16]OM_EF_2017!G44 -> 0.6404805078 | W142: 0
B143: CAR3 | F143: =+[16]OM_EF_2017!G45 -> 0.5608717579 | H143: 7408.708638 | W143: 0
B144: Entre Ríos | F144: =+[16]OM_EF_2017!G46 -> 0 | W144: 0
B145: ERI01 | F145: =+[16]OM_EF_2017!G47 -> 0.5922417486 | G145: 94768 | H145: 186730 | I145: 193238 | J145: 176801 | K145: 173128 | L145: 75240 | M145: 152450 | N145: 36192 | O145: =+AVERAGE($L$145:$N$145) -> 87960.66667 | W145: 0 | Z145: =+AVERAGE($L$145:$N$145) -> 87960.66667 | AA145: 87960.66667 | AB145: 87960.66667 | AC145: 87960.66667
B146: ERI02 | F146: =+[16]OM_EF_2017!G48 -> 0.5917090506 | G146: 123773.2823 | H146: 193364 | I146: 193432 | J146: 175773 | K146: 165138 | L146: 85293 | M146: 168623 | N146: 52744 | O146: =+AVERAGE($L$146:$N$146) -> 102220 | W146: 0 | Z146: =+AVERAGE($L$146:$N$146) -> 102220 | AA146: 102220 | AB146: 102220 | AC146: 102220
B147: ERI03 | F147: =+[16]OM_EF_2017!G49 -> 0.5917682393 | G147: 109541.1268 | H147: 170825 | I147: 196674 | J147: 195325 | K147: 173443 | L147: 74301 | M147: 182321 | N147: 60409 | O147: =+AVERAGE($L$147:$N$147) -> 105677 | W147: 0 | Z147: =+AVERAGE($L$147:$N$147) -> 105677 | AA147: 105677 | AB147: 105677 | AC147: 105677
B148: ERI04 | F148: =+[16]OM_EF_2017!G50 -> 0.5970360302 | G148: 77401.001 | H148: 187411 | I148: 183871 | J148: 186743 | K148: 193663 | L148: 89367 | M148: 182872 | N148: 46175 | O148: =+AVERAGE($L$148:$N$148) -> 106138 | W148: 0 | Z148: =+AVERAGE($L$148:$N$148) -> 106138 | AA148: 106138 | AB148: 106138 | AC148: 106138
B149: Guaracachi | F149: =+[16]OM_EF_2017!G51 -> 0 | W149: 0
B150: GCH1 | F150: =+[16]OM_EF_2017!G52 -> 0.7085474687 | G150: 54977.58 | H150: 31424.37 | I150: 44186.28 | J150: 6585.96 | K150: 15638.4 | L150: 14091.3 | M150: 42919.2 | N150: 41459.7 | O150: =+AVERAGE($L$150:$N$150) -> 32823.4 | W150: 0 | AC150: =+AVERAGE($L$150:$N$150) -> 32823.4
B151: GCH2 | F151: =+[16]OM_EF_2017!G53 -> 0.7454811936 | G151: 44343.57 | H151: 38362.5 | I151: 31007.91 | J151: 4921.44 | K151: 14575.08 | L151: 10209.6 | M151: 28229.76 | N151: 20603.04 | O151: =+AVERAGE($L$151:$N$151) -> 19680.8 | W151: 0 | AC151: =+AVERAGE($L$151:$N$151) -> 19680.8
B152: GCH4 | F152: =+[16]OM_EF_2017!G54 -> 0.7596272838 | G152: 35434.59 | H152: 65185.068 | I152: 40516.368 | J152: 17730.18 | K152: 24451.464 | L152: 13814.244 | M152: 43634.928 | N152: 24144.996 | W152: 0
B153: GCH6 | F153: =+[16]OM_EF_2017!G55 -> 0.748381438 | G153: 47583.18 | H153: 73021.77 | I153: 79926.345 | J153: 32721.12 | K153: 52400.7557 | L153: 49910.715 | M153: 73438.605 | N153: 47740.185 | O153: 11036.54888 | W153: 0 | AC153: 36445.25758
B154: GCH7 | G154: 0 | H154: 0 | I154: 0 | J154: 0 | K154: 0 | L154: 0 | M154: 0 | N154: 0 | O154: =+AVERAGE(L154:N154) -> 0 | P154: =+O154 -> 0 | Q154: 0 | R154: 0 | S154: 0 | T154: 0 | U154: 0 | V154: =+U154 -> 0 | W154: 0 | Y154: =+V154 -> 0 | Z154: 0 | AA154: 0 | AB154: 0 | AC154: 0
B155: GCH9 | F155: =+[16]OM_EF_2017!G56 -> 0.5960298229 | G155: 0 | H155: 0 | I155: 345670.74 | J155: 479429.598 | K155: 420127.4714 | L155: 459226.692 | M155: 240047.46 | N155: 381288.42 | O155: =+AVERAGE($L$155:$N$155) -> 360187.524 | W155: 0 | AA155: =+AVERAGE($L$155:$N$155) -> 360187.524 | AB155: 360187.524 | AC155: 360187.524
B156: GCH10 | F156: =+[16]OM_EF_2017!G57 -> 0.5960298229 | G156: 304167.352 | H156: 362328.336 | I156: 425317.902 | J156: 461289.348 | K156: 412122.1051 | L156: 378806.544 | M156: 386168.796 | N156: 365210.388 | O156: =+AVERAGE($L$156:$N$156) -> 376728.576 | W156: 0 | Z156: 115761.7288 | AA156: =+AVERAGE($L$156:$N$156) -> 376728.576 | AB156: 376728.576 | AC156: 376728.576
B157: GCH11 | F157: =+[16]OM_EF_2017!G58 -> 0.5960298229 | G157: 274064.728 | H157: 328187.052 | I157: 215762.2583 | J157: 201328.7141 | K157: 301526.5525 | L157: 234237.2923 | M157: 299524.302 | N157: 149744.4793 | O157: =+AVERAGE($L$157:$N$157) -> 227835.3578 | W157: 0 | Z157: =+AVERAGE($L$157:$N$157) -> 227835.3578 | AA157: 227835.3578 | AB157: 227835.3578 | AC157: 227835.3578
B158: GCH12 | F158: =+[16]OM_EF_2017!G59 -> 0.4268094392 | G158: 386364.6331 | H158: 362853.2407 | I158: 369449.514 | J158: 616226.289 | K158: 523552.596 | L158: 544179.2599 | M158: 222713.652 | N158: 361213.692 | O158: =+AVERAGE($L$158:$N$158) -> 376035.5346 | P158: =+AVERAGE($L$158:$N$158) -> 376035.5346 | V158: 189084.2746 | W158: 80702.95321 | Y158: 376035.5346 | Z158: 376035.5346 | AA158: 376035.5346 | AB158: 376035.5346 | AC158: 376035.5346
B159: Karachipampa | F159: =+[16]OM_EF_2017!G60 -> 0 | W159: =V159*F159 -> 0
B160: KAR1 | F160: =+[16]OM_EF_2017!G61 -> 0.7019775273 | G160: 80691.73504 | H160: 79540.578 | I160: 60267.49772 | J160: 84986.5836 | K160: 61003.53232 | L160: 79662.39755 | M160: 76545.15521 | N160: 41016.303 | O160: =+AVERAGE($L$160:$N$160) -> 65741.28526 | W160: 0 | AB160: =+AVERAGE($L$160:$N$160) -> 65741.28526 | AC160: 65741.28526
B161: Kenko | F161: =+[16]OM_EF_2017!G62 -> 0 | W161: 0
B162: KEN1 | F162: =+[16]OM_EF_2017!G63 -> 0.7146439009 | G162: 46977.26562 | H162: 50444.30312 | I162: 50792.9475 | J162: 25340.75831 | K162: 43520.74519 | L162: 0 | M162: 1793.82 | N162: 18.81 | O162: =+AVERAGE($L$162:$N$162) -> 604.21 | R162: 0 | S162: 0 | T162: 0 | U162: 0 | V162: 0 | W162: 0 | Y162: 0 | Z162: 0 | AA162: 0 | AB162: 0 | AC162: 0
B163: KEN2 | F163: =+[16]OM_EF_2017!G64 -> 0.709198544 | G163: 47451.323 | H163: 50578.20975 | I163: 52201.957 | J163: 20555.56487 | K163: 46932.1795 | L163: 29966.794 | M163: 14728.66919 | N163: 14455.24559 | O163: =+AVERAGE($L$163:$N$163) -> 19716.90293 | R163: 0 | S163: 0 | T163: 0 | U163: 0 | V163: 0 | W163: 0 | Y163: 0 | Z163: 0 | AA163: 0 | AB163: 0 | AC163: 0
B164: Santa Cruz | F164: =+[16]OM_EF_2017!G65 -> 0 | W164: 0
B165: SCZ1 | F165: =+[16]OM_EF_2017!G66 -> 0.7013856407 | G165: 73485.585 | H165: 82841.6925 | I165: 69552.7875 | J165: 23800.9429 | K165: 44110.71 | L165: 44085.42 | M165: 76414.3515 | N165: 77133.69 | O165: =+AVERAGE($L$165:$N$165) -> 65877.8205 | W165: 0 | AB165: =+AVERAGE($L$165:$N$165) -> 65877.8205 | AC165: 65877.8205
B166: SCZ2 | F166: =+[16]OM_EF_2017!G67 -> 0.6908500589 | G166: 86746.32 | H166: 105667.14 | I166: 63985.62 | J166: 16188.9 | K166: 29892.71113 | L166: 35185.5 | M166: 69334.6305 | N166: 64466.46 | O166: =+AVERAGE($L$166:$N$166) -> 56328.8635 | W166: 0 | AA166: =+AVERAGE($L$166:$N$166) -> 56328.8635 | AB166: 56328.8635 | AC166: 56328.8635
B167: Del Sur | F167: =+[16]OM_EF_2017!G68 -> 0 | W167: 0
B168: SUR01 | F168: =+[16]OM_EF_2017!G69 -> 0.5532956092 | K168: 84605.7 | L168: 283458 | M168: 327520.8056 | N168: 321801.0224 | O168: 310926.6093 | W168: 0
B169: SUR02 | F169: =+[16]OM_EF_2017!G70 -> 0.5560182876 | K169: 129537 | L169: 256045 | M169: 313178.5303 | N169: 283832.3403 | O169: 284351.9568 | W169: 0
B170: SUR03 | F170: =+[16]OM_EF_2017!G71 -> 0.5506913081 | K170: 108702.3 | L170: 285112 | M170: 329847.8392 | N170: 326287.4248 | O170: 313749.088 | W170: 0
B171: SUR04 | F171: =+[16]OM_EF_2017!G72 -> 0.5503361761 | K171: 73180 | L171: 279769 | M171: 310140.643 | N171: 335050.7928 | O171: 308320.1453 | W171: 0
B172: Valle Hermoso (VHE) | F172: =+[16]OM_EF_2017!G73 -> 0.7014771344 | G172: 412298.62 | H172: 375505.48 | I172: 441361.193 | J172: 438893.555 | K172: 458878.518 | L172: 260568.359 | M172: 431717.9446 | N172: 498992.928 | O172: =+AVERAGE($L$172:$N$172) -> 397093.0772 | W172: 0 | AA172: 282837.7405 | AB172: 188301.9681 | AC172: =+AVERAGE($L$172:$N$172) -> 397093.0772
B173: VHE1 | F173: =+[16]OM_EF_2017!G74 -> 0.77217528 | W173: 0
B174: VHE2 | F174: =+[16]OM_EF_2017!G75 -> 0.6957627178 | W174: 0
B175: VHE3 | F175: =+[16]OM_EF_2017!G76 -> 0.7326964427 | W175: 0
B176: VHE4 | F176: =+[16]OM_EF_2017!G77 -> 0.7701036769 | W176: 0
B177: VHE5 | F177: =+[16]OM_EF_2017!G78 -> 0.6259200971 | W177: 0
B178: VHE6 | F178: =+[16]OM_EF_2017!G79 -> 0.6288795301 | W178: 0
B179: VHE7 | F179: =+[16]OM_EF_2017!G80 -> 0.6310695106 | W179: 0
B180: VHE8 | F180: =+[16]OM_EF_2017!G81 -> 0.6315430199 | W180: 0
B181: Warnes | F181: =+[16]OM_EF_2017!G82 -> 0 | W181: 0
B182: WAR01 | F182: =+[16]OM_EF_2017!G83 -> 0.5350063128 | L182: 198822 | M182: 327476 | N182: 341340.336 | O182: =+AVERAGE(L182:N182) -> 289212.7787 | P182: 226167.0703 | W182: 0
B183: WAR02 | F183: =+[16]OM_EF_2017!G84 -> 0.540037349 | L183: 104963 | M183: 303848 | N183: 232234.96 | O183: =+AVERAGE(L183:N183) -> 213681.9867 | W183: 0
B184: WAR03 | F184: =+[16]OM_EF_2017!G85 -> 0.5399189717 | L184: 135385 | M184: 334360 | N184: 332215.632 | O184: 267320.2107 | W184: 0
B185: WAR04 | F185: =+[16]OM_EF_2017!G86 -> 0.5406292356 | L185: 75984 | M185: 328445 | N185: 319457.856 | O185: 241295.6187 | W185: 0
B186: WAR05 | F186: =+[16]OM_EF_2017!G87 -> 0.5412803109 | L186: 91678 | M186: 330964 | N186: 332882.232 | O186: =+AVERAGE($L$186:$N$186) -> 251841.4107 | W186: 0 | Z186: =+AVERAGE($L$186:$N$186) -> 251841.4107 | AA186: 251841.4107 | AB186: 251841.4107 | AC186: 251841.4107
W187: 0
G188: 2010 | H188: 2011 | I188: 2012 | J188: 2013 | K188: 2014 | L188: 2015 | M188: 2016 | N188: 2017 | O188: 2018 | P188: 2019 | Q188: 2020 | R188: 2021 | S188: 2022 | T188: 2023 | U188: 2024 | V188: 2025 | W188: 0 | Y188: 2026 | Z188: 2027 | AA188: 2028 | AB188: 2029 | AC188: 2030
B189: Plant Unit | C189: Commissioning date | D189: Capacity [MW] | E189: Capacity factor | G189: Generation [MWh] | H189: Generation [MWh] | I189: Generation [MWh] | J189: Generation [MWh] | K189: Generation [MWh] | L189: Generation [MWh] | M189: Generation [MWh] | N189: Generation [MWh] | O189: Generation [MWh] | P189: Generation [MWh] | Q189: Generation [MWh] | R189: Generation [MWh] | S189: Generation [MWh] | T189: Generation [MWh] | U189: Generation [MWh] | V189: Generation [MWh] | Y189: Generation [MWh] | Z189: Generation [MWh] | AA189: Generation [MWh] | AB189: Generation [MWh] | AC189: Generation [MWh]
B190: Hydropower | G190: =SUM(G191:G259) -> 2151428.98 | H190: 2324105.464 | I190: 2322084.465 | J190: 2514863.619 | K190: 2232992.857 | L190: 2439591.151 | M190: 1715604.461 | N190: 2229863.901 | O190: 2651238.979 | P190: 2640951.116 | Q190: 2640951.116 | R190: 2640951.116 | S190: 2640951.116 | T190: 2640951.116 | U190: 2640951.116 | V190: 2640951.116 | W190: 0 | Y190: 2640951.116 | Z190: 2640951.116 | AA190: 2640951.116 | AB190: 2640951.116 | AC190: 2640951.116
B191: Angostura | W191: 0
B192: ANG1 | G192: 9271.1 | H192: 8656.585 | I192: 10232.769 | J192: 8655.151 | K192: 8364.82 | L192: 8059.284 | M192: 8299.026 | N192: 7068.212 | O192: =+AVERAGE(L192:N192) -> 7808.840667 | P192: =+O192 -> 7808.840667 | Q192: =+P192 -> 7808.840667 | R192: 7808.840667 | S192: 7808.840667 | T192: 7808.840667 | U192: 7808.840667 | V192: =+U192 -> 7808.840667 | W192: 0 | Y192: =+V192 -> 7808.840667 | Z192: 7808.840667 | AA192: 7808.840667 | AB192: 7808.840667 | AC192: 7808.840667
B193: ANG2 | G193: 4843.5 | H193: 5139.198 | I193: 4981.526 | J193: 3998.696 | K193: 4087.838 | L193: 3992.585 | M193: 2863.16 | N193: 3531.556 | O193: 3462.433667 | P193: =+O193 -> 3462.433667 | Q193: 3462.433667 | R193: 3462.433667 | S193: 3462.433667 | T193: 3462.433667 | U193: 3462.433667 | V193: =+U193 -> 3462.433667 | W193: 0 | Y193: =+V193 -> 3462.433667 | Z193: 3462.433667 | AA193: 3462.433667 | AB193: 3462.433667 | AC193: 3462.433667
B194: ANG3 | G194: 5760.916 | H194: 6575.517 | I194: 7386.07 | J194: 6891.603 | K194: 6808.925 | L194: 6644.116 | M194: 5656.743 | N194: 6833.087 | O194: 6377.982 | P194: 6377.982 | Q194: 6377.982 | R194: 6377.982 | S194: 6377.982 | T194: 6377.982 | U194: 6377.982 | V194: =+U194 -> 6377.982 | W194: 0 | Y194: =+V194 -> 6377.982 | Z194: 6377.982 | AA194: 6377.982 | AB194: 6377.982 | AC194: 6377.982
B195: Botijlaca | W195: 0
B196: BOT1 | G196: 7849.874 | H196: 8621.266 | I196: 8717.69 | J196: 8548.19 | K196: 6937.646 | L196: 8959.491 | M196: 5032.601 | N196: 8563.441 | O196: 7518.511 | P196: =+O196 -> 7518.511 | Q196: 7518.511 | R196: 7518.511 | S196: 7518.511 | T196: 7518.511 | U196: 7518.511 | V196: =+U196 -> 7518.511 | W196: 0 | Y196: =+V196 -> 7518.511 | Z196: 7518.511 | AA196: 7518.511 | AB196: 7518.511 | AC196: 7518.511
B197: BOT2 | G197: 6640.692 | H197: 7153.313 | I197: 7359.012 | J197: 7028.019 | K197: 5548.011 | L197: 7037.519 | M197: 3451.904 | N197: 6239.618 | O197: 5576.347 | P197: 5576.347 | Q197: 5576.347 | R197: 5576.347 | S197: 5576.347 | T197: 5576.347 | U197: 5576.347 | V197: =+U197 -> 5576.347 | W197: 0 | Y197: =+V197 -> 5576.347 | Z197: 5576.347 | AA197: 5576.347 | AB197: 5576.347 | AC197: 5576.347
B198: BOT3 | G198: 21561.253 | H198: 20814.348 | I198: 22706.516 | J198: 22174.723 | K198: 20967.523 | L198: 23605.781 | M198: 18889.346 | N198: 20402.677 | O198: 20965.93467 | P198: 20965.93467 | Q198: 20965.93467 | R198: 20965.93467 | S198: 20965.93467 | T198: 20965.93467 | U198: 20965.93467 | V198: =+U198 -> 20965.93467 | W198: 0 | Y198: =+V198 -> 20965.93467 | Z198: 20965.93467 | AA198: 20965.93467 | AB198: 20965.93467 | AC198: 20965.93467
B199: Cahua | W199: 0
B200: CAH1 | G200: 79039.576 | H200: 58254.009 | I200: 51281.208 | J200: 86457.891 | K200: 85493.886 | L200: 81648.602 | M200: 62691.475 | N200: 85854.238 | O200: 76731.43833 | P200: =+O200 -> 76731.43833 | Q200: 76731.43833 | R200: 76731.43833 | S200: 76731.43833 | T200: 76731.43833 | U200: 76731.43833 | V200: =+U200 -> 76731.43833 | W200: 0 | Y200: =+V200 -> 76731.43833 | Z200: 76731.43833 | AA200: 76731.43833 | AB200: 76731.43833 | AC200: 76731.43833
B201: CAH2 | G201: 81435.837 | H201: 91507.437 | I201: 83285.34 | J201: 84764.018 | K201: 77185.931 | L201: 81079.113 | M201: 67549.633 | N201: 83617.593 | O201: 77415.44633 | P201: 77415.44633 | Q201: 77415.44633 | R201: 77415.44633 | S201: 77415.44633 | T201: 77415.44633 | U201: 77415.44633 | V201: =+U201 -> 77415.44633 | W201: 0 | Y201: =+V201 -> 77415.44633 | Z201: 77415.44633 | AA201: 77415.44633 | AB201: 77415.44633 | AC201: 77415.44633
B202: Carabuco | W202: 0
B203: CRB | G203: 43231.955 | H203: 41999.479 | I203: 43164.041 | J203: 45495.326 | K203: 43258.478 | L203: 41867.757 | M203: 36040.24 | N203: 41074.045 | O203: 39660.68067 | P203: =+O203 -> 39660.68067 | Q203: =+P203 -> 39660.68067 | R203: 39660.68067 | S203: 39660.68067 | T203: 39660.68067 | U203: 39660.68067 | V203: =+U203 -> 39660.68067 | W203: 0 | Y203: =+V203 -> 39660.68067 | Z203: 39660.68067 | AA203: 39660.68067 | AB203: 39660.68067 | AC203: 39660.68067
B204: Chojlla | W204: 0
B205: CHJ1y2 | G205: 5956.35675 | H205: 3270.249673 | I205: 5549.074273 | J205: 3766.921545 | K205: 4567.332535 | L205: 1658.238035 | M205: 38.66845 | N205: 0 | O205: 565.635495 | P205: =+O205 -> 565.635495 | Q205: 565.635495 | R205: 565.635495 | S205: 565.635495 | T205: 565.635495 | U205: 565.635495 | V205: =+U205 -> 565.635495 | W205: 0 | Y205: =+V205 -> 565.635495 | Z205: 565.635495 | AA205: 565.635495 | AB205: 565.635495 | AC205: 565.635495
B206: CHJ | G206: 106123.258 | H206: 124388.162 | I206: 135330.642 | J206: 141958.0827 | K206: 127364.103 | L206: 130614.54 | M206: 50256.09 | N206: 127227.77 | O206: 102699.4667 | P206: 102699.4667 | Q206: 102699.4667 | R206: 102699.4667 | S206: 102699.4667 | T206: 102699.4667 | U206: 102699.4667 | V206: =+U206 -> 102699.4667 | W206: 0 | Y206: =+V206 -> 102699.4667 | Z206: 102699.4667 | AA206: 102699.4667 | AB206: 102699.4667 | AC206: 102699.4667
B207: Choquetanga | W207: 0
B208: CHO1 | G208: 12172.712 | H208: 11726.216 | I208: 12408.23 | J208: 12482.19 | K208: 11577.643 | L208: 11539.983 | M208: 9108.759 | N208: 10812.362 | O208: 10487.03467 | P208: =+O208 -> 10487.03467 | Q208: 10487.03467 | R208: 10487.03467 | S208: 10487.03467 | T208: 10487.03467 | U208: 10487.03467 | V208: =+U208 -> 10487.03467 | W208: 0 | Y208: =+V208 -> 10487.03467 | Z208: 10487.03467 | AA208: 10487.03467 | AB208: 10487.03467 | AC208: 10487.03467
B209: CHO2 | G209: 14106.915 | H209: 13902.389 | I209: 15012.158 | J209: 15518.907 | K209: 14227.504 | L209: 14778.668 | M209: 11847.556 | N209: 13785.388 | O209: 13470.53733 | P209: 13470.53733 | Q209: 13470.53733 | R209: 13470.53733 | S209: 13470.53733 | T209: 13470.53733 | U209: 13470.53733 | V209: =+U209 -> 13470.53733 | W209: 0 | Y209: =+V209 -> 13470.53733 | Z209: 13470.53733 | AA209: 13470.53733 | AB209: 13470.53733 | AC209: 13470.53733
... 64 more rows

Sheet Hoja1
E2: 2025
D3: EG | E3: =Scenario_Current_Demand!V12 -> 15617618.79
D5: Hidros | E5: =Scenario_Current_Demand!V45+Scenario_Current_Demand!V190 -> 5348667.116
D6: Solar | E6: =+Scenario_Current_Demand!V90 -> 346896
D7: Eolico | E7: =+Scenario_Current_Demand!V72+Scenario_Current_Demand!V270 -> 555170.579
D8: Geotermico | E8: =+Scenario_Current_Demand!V107 -> 37230
D9: Biomasa | E9: =+Scenario_Current_Demand!V262 -> 61776.90033
D10: LCMR | E10: =SUM(E5:E9) -> 6349740.595 | F10: =E10/E3 -> 0.4065754633
D12: EG m,y | E12: =E3-E10 -> 9267878.195

Sheet Proyectos Adicionales C-D
B3: Plant Unit | C3: Commissioning date | D3: Capacity [MW] | E3: Capacity factor
B4: Hydropower
B5: Hydro A
B6: Hidro A | C6: 2029 | D6: 250 | E6: 0.5
B7: Hydro B
B8: Hidro B | C8: 2030 | D8: 90 | E8: 0.5

Sheet Proyectos
C3: Adiciones de proyectos (1999 - 2021)
C4: Unidad | D4: Fecha Puesta en Marcha | E4: Capacidad (MW) | F4: Tecnologia | G4: Proyecto MDL
C5: Palillada | D5: 2021-08-01 | E5: 118.2 | F5: Hydro | G5: NO
C6: Umapalca | D6: 2021-07-01 | E6: 85.8 | F6: Hydro | G6: NO
C7: Sehuencas | D7: 2021-06-01 | E7: 198.6 | F7: Hydro | G7: NO
C8: Juntas | D8: 2021-06-01 | E8: 91.56 | F8: Hydro | G8: NO
C9: Warnes II | D9: 2021-05-01 | E9: 24 | F9: Eolico | G9: NO
C10: La Ventolera | D10: 2021-05-01 | E10: 21 | F10: Eolico | G10: NO
C11: Planta Piloto Goetermica | D11: 2020-12-01 | E11: 5 | F11: Geotermico | G11: NO
C12: CCSUR10 | D12: 2020-02-01 | E12: 36.72 | F12: Thermal | G12: NO
C13: CCWAR20 | D13: 2020-02-01 | E13: 40.34 | F13: Thermal | G13: NO
C14: CCERI50 | D14: 2019-12-01 | E14: 136.4 | F14: Thermal | G14: NO
C15: CCSUR20 | D15: 2019-12-01 | E15: 36.72 | F15: Thermal | G15: NO
C16: CCWAR10 | D16: 2019-12-01 | E16: 40.34 | F16: Thermal | G16: NO
C17: CCERI40 | D17: 2019-10-01 | E17: 136.4 | F17: Thermal | G17: NO
C18: CCERI30 | D18: 2019-08-01 | E18: 136.4 | F18: Thermal | G18: NO
C19: CCWAR40 | D19: 2019-08-01 | E19: 135.15 | F19: Thermal | G19: NO
C20: CCWAR30 | D20: 2019-07-01 | E20: 135.15 | F20: Thermal | G20: NO
C21: AGU01 | D21: 2019-05-01 | E21: 4.57 | F21: Biomass | G21: NO
C22: CCSUR40 | D22: 2019-04-01 | E22: 132.69 | F22: Thermal | G22: NO
C23: CCSUR30 | D23: 2019-02-01 | E23: 132.69 | F23: Thermal | G23: NO
C24: San José 2 | D24: 2019-02-01 | E24: 69 | F24: Hydro | G24: NO
C25: Warnes I | D25: 2020-05-01 | E25: 14.4 | F25: Eolico | G25: NO
C26: San Julian | D26: 2020-07-01 | E26: 39.6 | F26: Eolico | G26: NO
C27: El Dorado | D27: 2020-08-01 | E27: 54 | F27: Eolico | G27: NO
C28: Yunchara | D28: 2017-10-01 | E28: 5 | F28: Solar | G28: NO
C29: IAG01 | D29: 2017-07-01 | E29: 5 | F29: Biomasa | G29: NO
C30: Misicuni | D30: 2017-09-01 | E30: 120 | F30: Hidro | G30: NO
C31: SBU01 | D31: 2016-09-01 | E31: 12 | F31: Biomasa | G31: NO
C32: QOLLPANA II | D32: 2016-08-01 | E32: 24 | F32: Eolico | G32: NO
C33: WAR01 | D33: 2015-09-01 | E33: 40 | F33: Termico | G33: NO
C34: WAR02 | D34: 2015-09-01 | E34: 40 | F34: Termico | G34: NO
C35: WAR03 | D35: 2015-09-01 | E35: 40 | F35: Termico | G35: NO
C36: WAR04 | D36: 2015-09-01 | E36: 40 | F36: Termico | G36: NO
C37: WAR05 | D37: 2015-09-01 | E37: 40 | F37: Termico | G37: NO
C38: San Jacinto | D38: 2015-08-01 | E38: 7 | F38: Hidro | G38: NO
C39: UNA01 | D39: 2015-06-01 | E39: 6 | F39: Biomasa | G39: NO
C40: SUR01 | D40: 2014-09-01 | E40: 40 | F40: Termico | G40: NO
C41: SUR02 | D41: 2014-09-01 | E41: 40 | F41: Termico | G41: NO
C42: SUR03 | D42: 2014-09-01 | E42: 40 | F42: Termico | G42: NO
C43: SUR04 | D43: 2014-09-01 | E43: 40 | F43: Termico | G43: NO
C44: QOLLPANA I | D44: 2014-01-01 | E44: 3 | F44: Eolico | G44: NO
C45: BUL03 | D45: 2013-12-01 | E45: 50 | F45: Termico | G45: NO
C46: ALT2 | D46: 2013-03-01 | E46: 32.35 | F46: Termico | G46: NO
C47: ALT 1 | D47: 2012-10-01 | E47: 17.5 | F47: Termico | G47: NO
C48: Ciclo Comb. (GCH 12) | D48: 2012-08-01 | E48: 82 | F48: Termico | G48: SI
C49: VHE 5,6,7,8 | D49: 2012-08-01 | E49: 42 | F49: Termico | G49: NO
C50: Car 03 | D50: 2012-01-01 | E50: 25 | F50: Termico | G50: NO
C51: Moxos | D51: 2011-10-01 | E51: 28 | F51: Termico | G51: NO
C52: ERI01 | D52: 2010-05-01 | E52: 26.7825 | F52: Termico | G52: NO
C53: ERI02 | D53: 2010-05-01 | E53: 26.7825 | F53: Termico | G53: NO
C54: ERI03 | D54: 2010-05-01 | E54: 26.7825 | F54: Termico | G54: NO
C55: ERI04 | D55: 2010-05-01 | E55: 26.7825 | F55: Termico | G55: NO
C56: Arj 13-14-15 | D56: 2008-08-01 | E56: 4.8 | F56: Termico | G56: NO
C57: QUEHATA | D57: 2007-10-07 | E57: 1.8 | F57: Hidro | G57: NO
C58: Guabira Energia (GE) | D58: 2007-10-01 | E58: 16.6 | F58: Biomasa | G58: NO
C59: GCH 11 | D59: 2007-05-07 | E59: 60 | F59: Termico | G59: NO
C60: Arj 9-10-11-12 | D60: 2006-08-01 | E60: 6.4 | F60: Termico | G60: NO
C61: Santa Isabel SIS5 | D61: 2004-06-04 | E61: 21.3 | F61: Hidro | G61: NO
C62: Chojlla | D62: 2002-06-01 | E62: 38.4 | F62: Hidro | G62: SI
C63: Yanacachi | D63: 2002-06-01 | E63: 80 | F63: Hidro | G63: SI
C64: Landara LAN1and3 | D64: 2001-06-23 | E64: 5 | F64: Hidro | G64: NO
C65: Kilpani KIL3 | D65: 2001-05-01 | E65: 5 | F65: Hidro | G65: NO
C66: CECBB1 & 2 | D66: 2000-05-01 | E66: 85.88 | F66: Termico | G66: NO
C67: Huaji | D67: 1999-06-01 | E67: 29 | F67: Hidro | G67: NO

Sheet Eficiencia
A1: CNDC
A5: ANEXO 5F
A7: CARACTERISTICAS DE UNIDADES TERMICAS PARA LA TEMPERATURA MEDIA ANUAL
A8: TURBINAS A GAS
A10: Periodo mayo - octubre 2018 | O10: 74100 | P10: kgCO2/Tj
O11: =O10/1000 -> 74.1 | P11: tCO2/Tj
A12: UNIDAD | B12: FOR | C12: TEMP | D12: POTENCIA EN BORNES | E12: CP&T (1) | F12: POTENCIA INYECTADA | G12: PODER CALORIFICO | H12: COSTO DE COMBUSTIBLE | J12: RENDIMIENTO TERMICO | M12: Eficiencia (%) | N12: Tipo de Combustible | O12: Factor de Emisiones | P12: Factor de Emisiones
J13: 50% (2) | K13: 0.75 | L13: 1 | M13: ηm,y
B14: % | C14: °C | D14: MW | E14: % | F14: MW | G14: BTU/PC | H14: US$/MPC | I14: US$/MMBTU | J14: BTU/KWh | K14: BTU/KWh | L14: BTU/KWh | O14: EFCO2 (tCO2/TJ) | P14: EFEL,m,y
A16: GCH01 | B16: 11.95 | C16: 26 | D16: 18.62 | E16: 3.5 | F16: 17.97 | G16: 925.6 | H16: 1.131 | I16: 1.221910112 | J16: 16761 | K16: 14443 | L16: 12977 | M16: =3412/L16 -> 0.2629267165 | N16: Gas Natural | O16: 56.1 | P16: =((O16*3.6)/1000)/M16 -> 0.7681227784
A17: GCH02 | B17: 2.76 | C17: 26 | D17: 17.62 | E17: 3.5 | F17: 17 | G17: 925.6 | H17: 1.131 | I17: 1.221910112 | J17: 18220 | K17: 15214 | L17: 13610 | M17: =3412/L17 -> 0.2506980162 | N17: Gas Natural | O17: =+O16 -> 56.1 | P17: =((O17*3.6)/1000)/M17 -> 0.8055907386
A18: GCH04 | B18: 1.39 | C18: 26 | D18: 19.95 | E18: 3.5 | F18: 19.25 | G18: 925.6 | H18: 1.131 | I18: 1.221910112 | J18: 16884 | K18: 13887 | L18: 12867 | M18: 0.2651744773 | N18: Gas Natural | O18: =+O17 -> 56.1 | P18: 0.7616117585
A19: GCH06 | B19: 3.42 | C19: 26 | D19: 20.71 | E19: 3.5 | F19: 19.99 | G19: 925.6 | H19: 1.131 | I19: 1.221910112 | J19: 16387 | K19: 13684 | L19: 12598 | M19: 0.2708366407 | N19: Gas Natural | O19: 56.1 | P19: 0.7456893552
A20: GCH09 | B20: 3.06 | C20: 26 | D20: 50.84 | E20: 3.5 | F20: 49.06 | G20: 925.6 | H20: 1.131 | I20: 1.221910112 | J20: 16181 | K20: 13345 | L20: 11934 | M20: 0.2859058153 | N20: Gas Natural | O20: 56.1 | P20: 0.7063864713
A21: GCH10 | B21: 3.27 | C21: 26 | D21: 51.85 | E21: 3.5 | F21: 50.04 | G21: 925.6 | H21: 1.131 | I21: 1.221910112 | J21: 16181 | K21: 13345 | L21: 11934 | M21: 0.2859058153 | N21: Gas Natural | O21: 56.1 | P21: 0.7063864713
A22: GCH11 | B22: 2.54 | C22: 26 | D22: 62.22 | E22: 3.5 | F22: 60.04 | G22: 925.6 | H22: 1.131 | I22: 1.221910112 | J22: 13827 | K22: 11267 | L22: 10242 | M22: 0.333138059 | N22: Gas Natural | O22: 56.1 | P22: 0.6062351465
A23: GCH09COM | B23: 5.79 | C23: 26 | D23: 103.96 | E23: 3.5 | F23: 100.32 | G23: 925.6 | H23: 1.131 | I23: 1.221910112 | J23: 7636 | K23: 7378 | L23: 7218 | M23: 0.4727071211 | N23: Gas Natural | O23: 56.1 | P23: 0.4272412896
A24: GCH10COM | B24: 5.92 | C24: 26 | D24: 102.87 | E24: 3.5 | F24: 99.27 | G24: 925.6 | H24: 1.131 | I24: 1.221910112 | J24: 7636 | K24: 7378 | L24: 7218 | M24: 0.4727071211 | N24: Gas Natural | O24: 56.1 | P24: 0.4272412896
A25: SCZ01 | B25: 0.6 | C25: 26 | D25: 20.76 | E25: 2.3 | F25: 20.28 | G25: 925.6 | H25: 1.131 | I25: 1.221910112 | J25: 16152 | K25: 13915 | L25: 12683 | M25: 0.2690215249 | N25: Gas Natural | O25: 56.1 | P25: 0.7507205979
A26: SCZ02 | B26: 2.24 | C26: 26 | D26: 21.19 | E26: 2.3 | F26: 20.7 | G26: 925.6 | H26: 1.131 | I26: 1.221910112 | J26: 16523 | K26: 14234 | L26: 12816 | M26: 0.2662297129 | N26: Gas Natural | O26: 56.1 | P26: 0.7585930129
A27: GBE01 | B27: 12.65 | C27: 26 | D27: 21 | E27: 1.7 | F27: 20.64 | N27: Biomasa
A28: IAG01 | B28: 3 | C28: 26 | D28: 5 | E28: 0 | F28: 5 | N28: Biomasa
A29: UNA01 | B29: 5 | C29: 26 | D29: 14.57 | E29: 0 | F29: 14.57 | N29: Biomasa
A30: SBU01 | B30: 5.25 | C30: 26 | D30: 6 | E30: 0 | F30: 6 | N30: Biomasa
A31: BUL01 | B31: 11.34 | C31: 26 | D31: 44.82 | E31: 2.6 | F31: 43.65 | G31: 925.4 | H31: 1.131 | I31: 1.222174195 | J31: 10516 | K31: 9420 | L31: 8715 | M31: 0.3915088927 | N31: =+N26 -> Gas Natural | O31: =+O26 -> 56.1 | P31: =((O31*3.6)/1000)/M31 -> 0.5158503517
A32: BUL02 | B32: 13.35 | C32: 26 | D32: 44.82 | E32: 2.6 | F32: 43.65 | G32: 925.4 | H32: 1.131 | I32: 1.222174195 | J32: 10516 | K32: 9420 | L32: 8715 | M32: 0.3915088927 | N32: =+N31 -> Gas Natural | O32: =+O31 -> 56.1 | P32: =((O32*3.6)/1000)/M32 -> 0.5158503517
A33: BUL03 | B33: 4.74 | C33: 26 | D33: 49.02 | E33: 2.6 | F33: 47.75 | G33: 925.4 | H33: 1.131 | I33: 1.222174195 | J33: 10179 | K33: 9015 | L33: 8535 | M33: 0.3997656708 | N33: =+N32 -> Gas Natural | O33: 56.1 | P33: 0.5051959555
A34: CAR01 | B34: 1.38 | C34: 26 | D34: 53.65 | E34: 2.5 | F34: 52.31 | G34: 929.5 | H34: 1.131 | I34: 1.216783217 | J34: 11489 | K34: 10175 | L34: 9745 | M34: 0.3501282709 | N34: Gas Natural | O34: 56.1 | P34: 0.5768171747
A35: CAR02 | B35: 2.85 | C35: 26 | D35: 55.39 | E35: 2.5 | F35: 54.01 | G35: 929.5 | H35: 1.131 | I35: 1.216783217 | J35: 11482 | K35: 10271 | L35: 9933 | M35: 0.3435014598 | N35: Gas Natural | O35: 56.1 | P35: 0.5879450996
A36: CAR03 | B36: 5.07 | C36: 26 | D36: 24.32 | E36: 2.5 | F36: 23.71 | G36: 929.5 | H36: 1.131 | I36: 1.216783217 | J36: 11619 | K36: 10356 | L36: 9749 | M36: 0.3499846138 | N36: Gas Natural | O36: 56.1 | P36: 0.577053939
A37: VHE01 | B37: 8.97 | C37: 18 | D37: 18.52 | E37: 0.7 | F37: 18.39 | G37: 929.9 | H37: 1.131 | I37: 1.216259813 | J37: 14467 | K37: 12428 | L37: 11519 | M37: 0.2962062679 | N37: Gas Natural | O37: 56.1 | P37: 0.6818221688
A38: VHE02 | B38: 0.52 | C38: 18 | D38: 18.81 | E38: 0.7 | F38: 18.68 | G38: 929.9 | H38: 1.131 | I38: 1.216259813 | J38: 14152 | K38: 12315 | L38: 11560 | M38: 0.2951557093 | N38: Gas Natural | O38: 56.1 | P38: 0.6842490035
A39: VHE03 | B39: 10.65 | C39: 18 | D39: 18.32 | E39: 0.7 | F39: 18.19 | G39: 929.9 | H39: 1.131 | I39: 1.216259813 | J39: 14815 | K39: 12533 | L39: 11435 | M39: 0.29838216 | N39: Gas Natural | O39: 56.1 | P39: 0.6768501172
A40: VHE04 | B40: 2.01 | C40: 18 | D40: 18.63 | E40: 0.7 | F40: 18.5 | G40: 929.9 | H40: 1.131 | I40: 1.216259813 | J40: 14044 | K40: 12173 | L40: 11383 | M40: 0.2997452341 | N40: Gas Natural | O40: 56.1 | P40: 0.6737721805
A41: VHE05 | B41: 2.66 | C41: 18 | D41: 10.58 | E41: 0.7 | F41: 10.51 | G41: 929.9 | H41: 1.131 | I41: 1.216259813 | J41: 12381 | K41: 10642 | L41: 9861 | M41: 0.3460095325 | N41: Gas Natural | O41: 56.1 | P41: 0.5836833411
A42: VHE06 | B42: 3.27 | C42: 18 | D42: 10.58 | E42: 0.7 | F42: 10.51 | G42: 929.9 | H42: 1.131 | I42: 1.216259813 | J42: 12381 | K42: 10642 | L42: 9861 | M42: 0.3460095325 | N42: Gas Natural | O42: 56.1 | P42: 0.5836833411
A43: VHE07 | B43: 2.59 | C43: 18 | D43: 10.58 | E43: 0.7 | F43: 10.51 | G43: 929.9 | H43: 1.131 | I43: 1.216259813 | J43: 12381 | K43: 10642 | L43: 9861 | M43: 0.3460095325 | N43: Gas Natural | O43: 56.1 | P43: 0.5836833411
A44: VHE08 | B44: 2.89 | C44: 18 | D44: 10.58 | E44: 0.7 | F44: 10.51 | G44: 929.9 | H44: 1.131 | I44: 1.216259813 | J44: 12381 | K44: 10642 | L44: 9861 | M44: 0.3460095325 | N44: Gas Natural | O44: 56.1 | P44: 0.5836833411
A45: ARJ08 | B45: 0.29 | C45: 15 | D45: 18.39 | E45: 2.9 | F45: 17.86 | G45: 965.4 | H45: 1.131 | I45: 1.171535115 | J45: 14347 | K45: 12590 | L45: 11586 | M45: 0.294493354 | N45: Gas Natural | O45: 56.1 | P45: 0.6857879719
A46: ARJ09 | B46: 17.66 | C46: 15 | D46: 1.49 | E46: 2.9 | F46: 1.45 | G46: 965.4 | H46: 1.131 | I46: 1.171535115 | J46: 10136 | K46: 9773 | L46: 9360 | M46: 0.3645299145 | N46: Gas Natural | O46: 56.1 | P46: 0.5540286049
A47: ARJ11 | B47: 17.33 | C47: 15 | D47: 1.49 | E47: 2.9 | F47: 1.45 | G47: 965.4 | H47: 1.131 | I47: 1.171535115 | J47: 10318 | K47: 9920 | L47: 9476 | M47: 0.360067539 | N47: Gas Natural | O47: 56.1 | P47: 0.5608947714
A48: ARJ12 | B48: 21.3 | C48: 15 | D48: 1.6 | E48: 2.9 | F48: 1.55 | G48: 965.4 | H48: 1.131 | I48: 1.171535115 | J48: 10004 | K48: 9154 | L48: 9050 | M48: 0.3770165746 | N48: Gas Natural | O48: 56.1 | P48: 0.5356793669
A49: ARJ13 | B49: 22.37 | C49: 15 | D49: 1.55 | E49: 2.9 | F49: 1.51 | G49: 965.4 | H49: 1.131 | I49: 1.171535115 | J49: 9587 | K49: 9284 | L49: 8846 | M49: 0.3857110558 | N49: Gas Natural | O49: 56.1 | P49: 0.5236043845
A50: ARJ14 | B50: 23.51 | C50: 15 | D50: 1.51 | E50: 2.9 | F50: 1.47 | G50: 965.4 | H50: 1.131 | I50: 1.171535115 | J50: 9792 | K50: 9358 | L50: 9037 | M50: 0.3775589244 | N50: Gas Natural | O50: 56.1 | P50: 0.5349098828
A51: ARJ15 | B51: 23.67 | C51: 15 | D51: 1.6 | E51: 2.9 | F51: 1.55 | G51: 965.4 | H51: 1.131 | I51: 1.171535115 | J51: 10004 | K51: 9154 | L51: 9050 | M51: 0.3770165746 | N51: Gas Natural | O51: 56.1 | P51: 0.5356793669
A52: KEN01 | B52: 16 | C52: 10 | D52: 9.35 | E52: 5 | F52: 8.88 | G52: 944 | H52: 1.131 | I52: 1.19809322 | J52: 15355 | K52: 12990 | L52: 12074 | M52: 0.2825906907 | N52: Gas Natural | O52: 56.1 | P52: 0.7146732239
A53: KEN02 | B53: 5.18 | C53: 10 | D53: 9.35 | E53: 5 | F53: 8.88 | G53: 944 | H53: 1.131 | I53: 1.19809322 | J53: 15259 | K53: 12731 | L53: 11982 | M53: 0.284760474 | N53: Gas Natural | O53: 56.1 | P53: 0.7092276436
A54: ALT01 | B54: 4.67 | C54: 10 | D54: 17.5 | E54: 1.3 | F54: 17.27 | G54: 944 | H54: 1.131 | I54: 1.19809322 | J54: 11396 | K54: 10222 | L54: 9682 | M54: 0.3524065276 | N54: Gas Natural | O54: 56.1 | P54: 0.573088136
A55: ALT02 | B55: 7.51 | C55: 10 | D55: 32.35 | E55: 1.3 | F55: 31.93 | G55: 944 | H55: 1.131 | I55: 1.19809322 | J55: 9522 | K55: 8531 | L55: 8140 | M55: 0.4191646192 | N55: Gas Natural | O55: 56.1 | P55: 0.4818154748
A56: ERI01 | B56: 0.93 | C56: 26 | D56: 28.72 | E56: 2.6 | F56: 27.97 | G56: 930.7 | H56: 1.131 | I56: 1.215214355 | J56: 11812 | K56: 10653 | L56: 9767 | M56: 0.349339613 | N56: Gas Natural | O56: 56.1 | P56: 0.5781193787
A57: ERI02 | B57: 0.77 | C57: 26 | D57: 28.04 | E57: 2.6 | F57: 27.31 | G57: 930.7 | H57: 1.131 | I57: 1.215214355 | J57: 12203 | K57: 10504 | L57: 9728 | M57: 0.3507401316 | N57: Gas Natural | O57: 56.1 | P57: 0.5758109261
A58: ERI03 | B58: 1.41 | C58: 26 | D58: 29.13 | E58: 2.6 | F58: 28.37 | G58: 930.7 | H58: 1.131 | I58: 1.215214355 | J58: 11869 | K58: 10149 | L58: 9786 | M58: 0.348661353 | N58: Gas Natural | O58: 56.1 | P58: 0.5792440094
A59: ERI04 | B59: 1.54 | C59: 26 | D59: 28.44 | E59: 2.6 | F59: 27.7 | G59: 930.7 | H59: 1.131 | I59: 1.215214355 | J59: 11974 | K59: 10360 | L59: 9872 | M59: 0.345623987 | N59: Gas Natural | O59: 56.1 | P59: 0.5843344431
A60: KAR01 | B60: 12.8 | C60: 9 | D60: 11.31 | E60: 1.4 | F60: 11.15 | G60: 965.4 | H60: 1.131 | I60: 1.171535115 | J60: 15514 | K60: 14023 | L60: 13034 | M60: 0.2617768912 | N60: Gas Natural | O60: 56.1 | P60: 0.7714966706
A61: SUR01 | B61: 1.5 | C61: 22 | D61: 43.83 | E61: 1.3 | F61: 43.26 | G61: 979.8 | H61: 1.131 | I61: 1.154317208 | J61: 11508 | K61: 9681 | L61: 8957 | M61: 0.3809311153 | N61: Gas Natural | O61: 56.1 | P61: 0.5301745955
A62: SUR02 | B62: 0.66 | C62: 22 | D62: 43.31 | E62: 1.3 | F62: 42.75 | G62: 979.8 | H62: 1.131 | I62: 1.154317208 | J62: 11126 | K62: 9741 | L62: 9003 | M62: 0.3789847829 | N62: Gas Natural | O62: 56.1 | P62: 0.5328973857
A63: SUR03 | B63: 0.6 | C63: 22 | D63: 44.16 | E63: 1.3 | F63: 43.59 | G63: 979.8 | H63: 1.131 | I63: 1.154317208 | J63: 11572 | K63: 9718 | L63: 8917 | M63: 0.3826399013 | N63: Gas Natural | O63: 56.1 | P63: 0.5278069519
A64: SUR04 | B64: 0.71 | C64: 22 | D64: 44.06 | E64: 1.3 | F64: 43.49 | G64: 979.8 | H64: 1.131 | I64: 1.154317208 | J64: 11478 | K64: 9743 | L64: 8934 | M64: 0.3819117976 | N64: Gas Natural | O64: 56.1 | P64: 0.5288132005
A65: WAR01 | B65: 0.64 | C65: 26 | D65: 44.58 | E65: 1.3 | F65: 44 | G65: 911.2 | H65: 1.131 | I65: 1.241220369 | J65: 11555 | K65: 9691 | L65: 8883 | M65: 0.3841044692 | N65: Gas Natural | O65: 56.1 | P65: 0.5257944549
A66: WAR02 | B66: 0.93 | C66: 26 | D66: 44 | E66: 1.3 | F66: 43.43 | G66: 911.2 | H66: 1.131 | I66: 1.241220369 | J66: 11640 | K66: 9739 | L66: 8966 | M66: 0.3805487397 | N66: Gas Natural | O66: 56.1 | P66: 0.5307073154
A67: WAR03 | B67: 0.61 | C67: 26 | D67: 44.33 | E67: 1.3 | F67: 43.75 | G67: 911.2 | H67: 1.131 | I67: 1.241220369 | J67: 11536 | K67: 9756 | L67: 8964 | M67: 0.3806336457 | N67: Gas Natural | O67: 56.1 | P67: 0.5305889332
A68: WAR04 | B68: 0.68 | C68: 26 | D68: 44.55 | E68: 1.3 | F68: 43.97 | G68: 911.2 | H68: 1.131 | I68: 1.241220369 | J68: 11649 | K68: 9800 | L68: 8976 | M68: 0.3801247772 | N68: Gas Natural | O68: 56.1 | P68: 0.5312992263
A69: WAR05 | B69: 0.62 | C69: 26 | D69: 44 | E69: 1.3 | F69: 43.43 | G69: 911.2 | H69: 1.131 | I69: 1.241220369 | J69: 11592 | K69: 9787 | L69: 8948 | M69: 0.3813142602 | N69: Gas Natural | O69: 56.1 | P69: 0.5296418757
A70: MOS01 | B70: 18.56 | C70: 28 | D70: 1.39 | E70: 4.9 | F70: 1.32 | G70: 37289 | H70: 0.465 | I70: 12.47016546 | J70: 10530 | K70: 9321 | L70: 8918 | M70: 0.3825969948 | N70: Diesel Oil | O70: 74.1 | P70: 0.697234959
A74: 1) Consumo propio, ventas directas y pérdidas entre bornes de generador y el SMEC
A75: 2) Los valores en negrilla corresponden al 60%

Sheet Generacion
A4: GENERACION (MWh)
C7: 2010 | D7: 2011 | E7: 2012 | F7: 2013 | G7: 2014 | H7: 2015 | I7: 2016 | J7: 2017
A8: CENTRALES HIDROELECTRICAS
A9: CORANI | B9: COR1234 | C9: 280767.663 | D9: 317689.14 | E9: 325459.12 | F9: 373791.26 | G9: 371305.78 | H9: 377176.696 | I9: 214629.939 | J9: 284284.711
A10: SANTA ISABEL | B10: SIS12345 | C10: 418380.171 | D10: 477614.6 | E10: 485267.32 | F10: 555713.26 | G10: 552076.44 | H10: 560551.928 | I10: 330698.884 | J10: 431404.268
A11: ZONGO | B11: ZON1 | C11: 11345.116 | D11: 11062.147 | E11: 9730.236 | F11: 8366.923 | G11: 9230.836 | H11: 9970.278 | I11: 9497.004 | J11: 10212.422
A12: TIQUIMANI | B12: TIQ1 | C12: 8884.209 | D12: 15926.226 | E12: 12913.74 | F12: 11358.186 | G12: 10445.099 | H12: 12813.867 | I12: 6632.062 | J12: 11241.979
A13: BOTIJLACA | B13: BOT1 | C13: 7849.874 | D13: 8621.266 | E13: 8717.69 | F13: 8548.19 | G13: 6937.646 | H13: 8959.491 | I13: 5032.601 | J13: 8563.441
B14: BOT2 | C14: 6640.692 | D14: 7153.313 | E14: 7359.012 | F14: 7028.019 | G14: 5548.011 | H14: 7037.519 | I14: 3451.904 | J14: 6239.618
B15: BOT3 | C15: 21561.253 | D15: 20814.348 | E15: 22706.516 | F15: 22174.723 | G15: 20967.523 | H15: 23605.781 | I15: 18889.346 | J15: 20402.677
A16: CUTICUCHO | B16: CUT1 | C16: 7186.324 | D16: 9743.347 | E16: 9415.135 | F16: 6458.43 | G16: 5475.314 | H16: 14181.029 | I16: 4440.681 | J16: 9498.882
B17: CUT2 | C17: 6993.139 | D17: 9282.077 | E17: 8698.524 | F17: 5753.34 | G17: 4912.893 | H17: 12898.889 | I17: 5619.907 | J17: 9023.669
B18: CUT3 | C18: 6822.617 | D18: 9067.503 | E18: 8820.174 | F18: 6045.047 | G18: 5060.786 | H18: 13386.754 | I18: 5422.311 | J18: 8865.554
B19: CUT4 | C19: 5297.483 | D19: 6581.793 | E19: 6336.64 | F19: 4570.038 | G19: 3245.185 | H19: 6687.367091 | I19: 2561.439 | J19: 4531.527
B20: CUT5 | C20: 90321.68 | D20: 94885.142 | E20: 92591.82 | F20: 80968.934 | G20: 71783.653 | H20: 80462.043 | I20: 75993.779 | J20: 96164.228
A21: SANTA ROSA | B21: SRO1 | C21: 35381.828 | D21: 40391.101 | E21: 32300.108 | F21: 36699.026 | G21: 35041.322 | H21: 38808.311 | I21: 27181.952 | J21: 38544.048
B22: SRO2 | C22: 43128.714 | D22: 46044.359 | E22: 43194.46 | F22: 45291.725 | G22: 48557.09 | H22: 47305.845 | I22: 39690.658 | J22: 47225.398
A23: SAINANI | B23: SAI1 | C23: 66898.477 | D23: 71701.51 | E23: 68123.947 | F23: 70554.084 | G23: 15429.729 | H23: 23543.033 | I23: 53982.859 | J23: 69211.265
A24: CHURURAQUI | B24: CHU1 | C24: 63528.492 | D24: 66072.78 | E24: 69551.443 | F24: 71908.643 | G24: 64762.602 | H24: 71255.49 | I24: 53061.766 | J24: 68171.012
B25: CHU2 | C25: 62589.967 | D25: 67733.378 | E25: 64736.138 | F25: 72200.595 | G25: 62725.934 | H25: 67719.197 | I25: 53897.993 | J25: 66329.928
A26: HARCA | B26: HAR1 | C26: 79080.591 | D26: 83215.97 | E26: 78452.137 | F26: 86076.892 | G26: 78528.325 | H26: 81849.417 | I26: 63047.572 | J26: 79535.855
B27: HAR2 | C27: 77042.934 | D27: 78275.416 | E27: 73415.542 | F27: 79960.058 | G27: 77429.542 | H27: 80452.606 | I27: 61868.473 | J27: 81530.162
A28: CAHUA | B28: CAH1 | C28: 79039.576 | D28: 58254.009 | E28: 51281.208 | F28: 86457.891 | G28: 85493.886 | H28: 81648.602 | I28: 62691.475 | J28: 85854.238
B29: CAH2 | C29: 81435.837 | D29: 91507.437 | E29: 83285.34 | F29: 84764.018 | G29: 77185.931 | H29: 81079.113 | I29: 67549.633 | J29: 83617.593
A30: HUAJI | B30: HUA1 | C30: 95760.287 | D30: 95144.05 | E30: 95119.72 | F30: 105447.589 | G30: 99009.819 | H30: 86632.661 | I30: 79958.991 | J30: 91011.157
B31: HUA2 | C31: 93799.605 | D31: 98539.03 | E31: 94138.09 | F31: 99492.22 | G31: 99241.433 | H31: 93811.008 | I31: 82387.253 | J31: 99447.379
A32: MIGUILLA | B32: MIG1 | C32: 4114 | D32: 4554.105 | E32: 4812.643 | F32: 4552.424 | G32: 4384.409 | H32: 4376.905 | I32: 3466.108 | J32: 4191.576
B33: MIG2 | C33: 4195 | D33: 4563.411 | E33: 4781.625 | F33: 4698.227 | G33: 4197.793 | H33: 4145.267 | I33: 3329.45 | J33: 4038.616
A34: ANGOSTURA | B34: ANG1 | C34: 9271.1 | D34: 8656.585 | E34: 10232.769 | F34: 8655.151 | G34: 8364.82 | H34: 8059.284 | I34: 8299.026 | J34: 7068.212
B35: ANG2 | C35: 4843.5 | D35: 5139.198 | E35: 4981.526 | F35: 3998.696 | G35: 4087.838 | H35: 3992.585 | I35: 2863.16 | J35: 3531.556
B36: ANG3 | C36: 5760.916 | D36: 6575.517 | E36: 7386.07 | F36: 6891.603 | G36: 6808.925 | H36: 6644.116 | I36: 5656.743 | J36: 6833.087
A37: CHOQUETANGA | B37: CHO1 | C37: 12172.712 | D37: 11726.216 | E37: 12408.23 | F37: 12482.19 | G37: 11577.643 | H37: 11539.983 | I37: 9108.759 | J37: 10812.362
B38: CHO2 | C38: 14106.915 | D38: 13902.389 | E38: 15012.158 | F38: 15518.907 | G38: 14227.504 | H38: 14778.668 | I38: 11847.556 | J38: 13785.388
B39: CHO3 | C39: 11843.383 | D39: 11428.677 | E39: 12088.936 | F39: 12150.215 | G39: 11142.393 | H39: 11178.842 | I39: 9006.972 | J39: 10677.777
A40: CARABUCO | B40: CRB | C40: 43231.955 | D40: 41999.479 | E40: 43164.041 | F40: 45495.326 | G40: 43258.478 | H40: 41867.757 | I40: 36040.24 | J40: 41074.045
A41: CHOJLLA Antigua | B41: CHJ1y2 | C41: 5956.35675 | D41: 3270.249673 | E41: 5549.074273 | F41: 3766.921545 | G41: 4567.332535 | H41: 1658.238035 | I41: 38.66845 | J41: 0
A42: CHOJLLA | B42: CHJ | C42: 106123.258 | D42: 124388.162 | E42: 135330.642 | F42: 141958.0827 | G42: 127364.103 | H42: 130614.54 | I42: 50256.09 | J42: 127227.77
A43: YANACACHI | B43: YAN | C43: 190812.2633 | D43: 206067.001 | E43: 209706.071 | F43: 223487.3474 | G43: 70571.212 | H43: 211398.553 | I43: 155757.262 | J43: 179334.131
A44: KANATA | B44: KAN1 | C44: 14119.3 | D44: 19288.97 | E44: 20815.78 | F44: 16358.64 | G44: 19804.84 | H44: 17612.39 | I44: 12031.66 | J44: 10963.13
A45: KILPANI | B45: KIL123 | C45: 40270.455 | D45: 38528.401 | E45: 41587.582 | F45: 42148.482 | G45: 45154.621 | H45: 41357.006 | I45: 32860.883 | J45: 31306.787
A46: LANDARA | B46: LAN123 | C46: 14596.415 | D46: 17363.157 | E46: 17535.357 | F46: 18995.719 | G46: 22123.662 | H46: 18022.293 | I46: 14087.349 | J46: 14473.442
A47: PUNUTUMA | B47: PUN1 | C47: 16964.522 | D47: 17331.444 | E47: 18585.001 | F47: 16688.196 | G47: 17786.664 | H47: 18207.586 | I47: 16078.901 | J47: 15005.555
A48: QUEHATA | B48: QUE01 | C48: 3310.4 | D48: 4002.56 | E48: 6492.9 | F48: 7388.4 | G48: 7175.84 | H48: 8301.2 | I48: 2307.6 | J48: 3547
B49: QUE02 | D49: 51.81 | E49: 346.8 | F49: 0 | G49: 0 | I49: 2352.1 | J49: 3707.2
A50: SAN JACINTO | B50: SJA01 | H50: 2118.474 | I50: 5921.3628 | J50: 9940.8974
B51: SJA02 | H51: 1880.5392 | I51: 6106.089 | J51: 10262.133
A52: MISICUNI | B52: MIS | J52: 11172.226
A53: PARQUES EÓLICOS
A54: QOLLPANA | B54: QOL Fase I | F54: 36.5285 | G54: 8157.757 | H54: 11450.126 | I54: 13207.373 | J54: 12488.579
B55: QOL Fase II | I55: 21704.071 | J55: 47894.7
A57: PLANTAS SOLARES
A58: YUNCHARA | B58: YUN | J58: 1065.63625
A60: CENTRALES TERMOELECTRICAS
A61: GUARACACHI | B61: GCH01 | C61: 54977.58 | D61: 31424.37 | E61: 44186.28 | F61: 6585.96 | G61: 15638.4 | H61: 14091.3 | I61: 42919.2 | J61: 41459.7
B62: GCH02 | C62: 44343.57 | D62: 38362.5 | E62: 31007.91 | F62: 4921.44 | G62: 14575.08 | H62: 10209.6 | I62: 28229.76 | J62: 20603.04
B63: GCH04 | C63: 35434.59 | D63: 65185.068 | E63: 40516.368 | F63: 17730.18 | G63: 24451.464 | H63: 13814.244 | I63: 43634.928 | J63: 24144.996
B64: GCH06 | C64: 47583.18 | D64: 73021.77 | E64: 79926.345 | F64: 32721.12 | G64: 52400.7557 | H64: 49910.715 | I64: 73438.605 | J64: 47740.185
B65: GCH09 | C65: 304167.352 | D65: 362328.336 | E65: 345670.74 | F65: 479429.598 | G65: 420127.4714 | H65: 459226.692 | I65: 240047.46 | J65: 381288.42
B66: GCH10 | C66: 274064.728 | D66: 328187.052 | E66: 425317.902 | F66: 461289.348 | G66: 412122.1051 | H66: 378806.544 | I66: 386168.796 | J66: 365210.388
B67: GCH11 | C67: 386364.6331 | D67: 362853.2407 | E67: 215762.2583 | F67: 201328.7141 | G67: 301526.5525 | H67: 234237.2923 | I67: 299524.302 | J67: 149744.4793
B68: GCH12 | C68: 85.296 | D68: 1236.102 | E68: 369449.514 | F68: 616226.289 | G68: 523552.596 | H68: 544179.2599 | I68: 222713.652 | J68: 361213.692
A69: SANTA CRUZ | B69: SCZ01 | C69: 73485.585 | D69: 82841.6925 | E69: 69552.7875 | F69: 23800.9429 | G69: 44110.71 | H69: 44085.42 | I69: 76414.3515 | J69: 77133.69
B70: SCZ02 | C70: 86746.32 | D70: 105667.14 | E70: 63985.62 | F70: 16188.9 | G70: 29892.71113 | H70: 35185.5 | I70: 69334.6305 | J70: 64466.46
B71: UNA01 | G71: 10615.625 | H71: 16947.5075 | I71: 10655.04975 | J71: 11162.567
A72: EASBA | B72: SBU01 | I72: 708.844 | J72: 751.153
A73: ARANJUEZ | B73: ARJ01 | C73: 0 | D73: 1295.25873 | E73: 6370.205515 | F73: 1574.993684 | G73: 5457.598282 | H73: 903.1293569 | I73: 2065.398746 | J73: 511.0025
B74: ARJ02 | C74: 7078.176123 | D74: 6630.80579 | E74: 0 | F74: 0 | G74: 1826.328269 | H74: 911.2479539 | I74: 2494.435346 | J74: 148.1945
B75: ARJ03 | C75: 6933.803202 | D75: 3921.550401 | E75: 7512.44944 | F75: 1769.8755 | G75: 5453.138 | H75: 742.6815 | I75: 3046.812 | J75: 740.5125
B76: ARJ08 | C76: 128803.56 | D76: 132236.64 | E76: 116890.92 | F76: 106260.78 | G76: 105427.86 | H76: 83446.76 | I76: 101154.24 | J76: 139685.16
B77: ARJ09 | C77: 8515.644332 | D77: 9389.035841 | E77: 9982.834451 | F77: 5243.73067 | G77: 10782.3011 | H77: 8423.39897 | I77: 10825.28304 | J77: 697.12325
B78: ARJ11 | C78: 5377.490046 | D78: 6762.75858 | E78: 8208.257779 | F78: 9655.36312 | G78: 7515.1433 | H78: 4874.09304 | I78: 10874.30593 | J78: 657.711895
B79: ARJ12 | C79: 5023.210781 | D79: 6196.934516 | E79: 11548.43109 | F79: 11349.07458 | G79: 9975.93413 | H79: 7073.216074 | I79: 0 | J79: 0
B80: ARJ13 | C80: 2147.392315 | D80: 8851.283968 | E80: 10087.29019 | F80: 9758.3664 | G80: 4970.5612 | H80: 5371.6202 | I80: 0 | J80: 0
B81: ARJ14 | C81: 8526.900641 | D81: 10123.33607 | E81: 9538.652815 | F81: 2570.0208 | G81: 7007.9094 | H81: 0 | I81: 0 | J81: 0
B82: ARJ15 | C82: 7797.829538 | D82: 4892.938408 | E82: 11580.99053 | F82: 10493.6892 | G82: 9947.2014 | H82: 7564.2672 | I82: 8339.7396 | J82: 474.077
A83: KARACHIPAMPA | B83: KAR1 | C83: 80691.73504 | D83: 79540.578 | E83: 60267.49772 | F83: 84986.5836 | G83: 61003.53232 | H83: 79662.39755 | I83: 76545.15521 | J83: 41016.303
A84: KENKO | B84: KEN01 | C84: 46977.26562 | D84: 50444.30312 | E84: 50792.9475 | F84: 25340.75831 | G84: 43520.74519 | H84: 0 | I84: 1793.82 | J84: 18.81
B85: KEN02 | C85: 47451.323 | D85: 50578.20975 | E85: 52201.957 | F85: 20555.56487 | G85: 46932.1795 | H85: 29966.794 | I85: 14728.66919 | J85: 14455.24559
A86: VALLE HERMOSO | B86: VHE12345678 | C86: 412298.62 | D86: 375505.48 | E86: 441361.193 | F86: 438893.555 | G86: 458878.518 | H86: 260568.359 | I86: 431717.9446 | J86: 498992.928
A87: CARRASCO | B87: CAR123 | C87: 743118.8202 | D87: 616986.2671 | E87: 772580.2 | F87: 667630.61 | G87: 815783.94 | H87: 516330.15 | I87: 440398.86 | J87: 552699.29
A88: C.EL ALTO | B88: ALT01 | E88: 57810.7089 | F88: 107684.098 | G88: 108265.7625 | H88: 62901.0717 | I88: 100635.927 | J88: 49236.5229
B89: ALT02 | F89: 103575.9891 | G89: 74350.10655 | H89: 230006.7025 | I89: 213864.514 | J89: 148687.6958
A90: BULO BULO | B90: BUL01 | C90: 320717 | D90: 327166 | E90: 106480 | F90: 287973.534 | G90: 269807.618 | H90: 253280.231 | I90: 223504.631 | J90: 237695.821
B91: BUL02 | C91: 331746 | D91: 326073 | E91: 289542 | F91: 202260.81 | G91: 173568.66 | H91: 33037.909 | I91: 15850.489 | J91: 77027.986
B92: BUL03 | F92: 917.24762 | G92: 265758.5813 | H92: 313954.442 | I92: 125500.576 | J92: 239710.459
A93: GUABIRA | B93: GBE | C93: 58156.17 | D93: 64040.52 | E93: 64494.2 | F93: 79491 | G93: 65694 | H93: 62146 | I93: 50538 | J93: 29748
B94: IAG | J94: 3137
A95: ENTRE RIOS | B95: ERI01 | C95: 94768 | D95: 186730 | E95: 193238 | F95: 176801 | G95: 173128 | H95: 75240 | I95: 152450 | J95: 36192
B96: ERI02 | C96: 123773.2823 | D96: 193364 | E96: 193432 | F96: 175773 | G96: 165138 | H96: 85293 | I96: 168623 | J96: 52744
B97: ERI03 | C97: 109541.1268 | D97: 170825 | E97: 196674 | F97: 195325 | G97: 173443 | H97: 74301 | I97: 182321 | J97: 60409
B98: ERI04 | C98: 77401.001 | D98: 187411 | E98: 183871 | F98: 186743 | G98: 193663 | H98: 89367 | I98: 182872 | J98: 46175
A99: DEL SUR | B99: SUR01 | G99: 84605.7 | H99: 283458 | I99: 327520.8056 | J99: 321801.0224
B100: SUR02 | G100: 129537 | H100: 256045 | I100: 313178.5303 | J100: 283832.3403
B101: SUR03 | G101: 108702.3 | H101: 285112 | I101: 329847.8392 | J101: 326287.4248
B102: SUR04 | G102: 73180 | H102: 279769 | I102: 310140.643 | J102: 335050.7928
A103: WARNES | B103: WAR01 | H103: 198822 | I103: 327476 | J103: 341340.336
B104: WAR02 | H104: 104963 | I104: 303848 | J104: 232234.96
B105: WAR03 | H105: 135385 | I105: 334360 | J105: 332215.632
B106: WAR04 | H106: 75984 | I106: 328445 | J106: 319457.856
B107: WAR05 | H107: 91678 | I107: 330964 | J107: 332882.232
A108: ENDE GEN. | B108: MOX | D108: 17193.9211 | E108: 78175.6298 | F108: 59999.3057 | G108: 92959.208 | H108: 86494.6717 | I108: 89033.7611 | J108: 89110.9052
A109: Total Generación bruta | C109: 6085526.165 | D109: 6611423.366 | E109: 6940448.356 | F109: 7347749.589 | G109: 7836447.911 | H109: 8334811.495 | I109: 8759264.864 | J109: 8981304.931
A110: Unidades MDL
A111: GUARACACHI | B111: GCH09 | C111: 304167.352 | D111: 362328.336 | E111: 345670.74 | F111: 479429.598 | G111: 420127.4714 | H111: 459226.692 | I111: 240047.46 | J111: 381288.42
B112: GCH10 | C112: 274064.728 | D112: 328187.052 | E112: 425317.902 | F112: 461289.348 | G112: 412122.1051 | H112: 378806.544 | I112: 386168.796 | J112: 365210.388
B113: GCH12 | C113: 85.296 | D113: 1236.102 | E113: 369449.514 | F113: 616226.289 | G113: 523552.596 | H113: 544179.2599 | I113: 222713.652 | J113: 361213.692
A114: CHOJLLA | B114: CHJ | C114: 106123.258 | D114: 124388.162 | E114: 135330.642 | F114: 141958.0827 | G114: 127364.103 | H114: 130614.54 | I114: 50256.09 | J114: 127227.77
A115: YANACACHI | B115: YAN | C115: 190812.2633 | D115: 206067.001 | E115: 209706.071 | F115: 223487.3474 | G115: 70571.212 | H115: 211398.553 | I115: 155757.262 | J115: 179334.131
A116: Total Unidades MDL | C116: 875252.8973 | D116: 1022206.653 | E116: 1485474.869 | F116: 1922390.665 | G116: 1553737.487 | H116: 1724225.589 | I116: 1054943.26 | J116: 1414274.401
A119: Unidades LCMR
A120: Hidroelectricas | C120: 2151428.98 | D120: 2324157.274 | E120: 2322431.265 | F120: 2514863.619 | G120: 2232992.857 | H120: 2439591.151 | I120: 1715604.461 | J120: 2229863.901
A121: Eolicas | C121: 0 | D121: 0 | E121: 0 | F121: 36.5285 | G121: 8157.757 | H121: 11450.126 | I121: 34911.444 | J121: 60383.279
A122: Solares | C122: 0 | D122: 0 | E122: 0 | F122: 0 | G122: 0 | H122: 0 | I122: 0 | J122: 1065.63625
A123: Biomasa | C123: 58156.17 | D123: 64040.52 | E123: 64494.2 | F123: 79491 | G123: 76309.625 | H123: 79093.5075 | I123: 61901.89375 | J123: 44798.72
A124: Total Unidades LCMR | C124: 2209585.15 | D124: 2388197.794 | E124: 2386925.465 | F124: 2594391.147 | G124: 2317460.239 | H124: 2530134.785 | I124: 1812417.799 | J124: 2336111.537
